Workbook

Sheet Cover Page
N2: Version 23.4a (for incinerators) - 15/11/2023
N4: Note that there is another version of this template available for co-incinerators
N13: Notes:
N14: This template may require adjustments by individual operators to meet specific reporting requirements as defined in the site Permit(s)
B29: Annual Performance Report 2023
B31: Permit EPR/HP3349QK
B33: Wolverhampton Energy from Waste Facility
B35: NA
B37: North Midlands Operations Ltd
B39: Year: | C39: 2023
B41: Address: | C41: Crown Street Wolverhampton West Midlands WV1 1QB
B43: Tel: | C43: 01902 458888
B45: Email: | C45: kate.harrop@cobaltenergy.co.uk
B47: Prepared by: | C47: A. Whittingham & C. Ballard | F47: Position: | G47: Q&E Coordinators
B49: Approved by: | C49: K. Harrop | F49: Position: | G49: Group Q&E Manager
B51: Version: | C51: 1
B53: Issue Date: | C53: 2024-01-31

Sheet Contents
A1: =+'Cover Page'!$B$29 -> Annual Performance Report 2023 | E1: =+'Cover Page'!$B$33 -> Wolverhampton Energy from Waste Facility
A3: Contents | K3: Notes:
A4: Section | B4: Subject | H4: Page | K4: Section references and Page nos. to be inserted
B5: Facility Information | H5: 4 | K5: Sections and Subjects may require adjustment by individual operators to meet specific reporting requirements as defined in the sites Permit(s)
B6: Operational Data | H6: 6
B7: Operational Summary | H7: 8
B8: Performance Form 1 | H8: 9
B9: Energy Form 1 | H9: 11
B10: Permit Compliance | H10: 12
B11: Improvements | H11: 14
B12: Public Liasion | H12: 15
B13: Carbon dioxide and nitrous oxide emissions | H13: 16
B14: Residue Quality | H14: 18
B15: Emissions to Water | H15: 19
B16: Emissions to Air (periodically monitored) | H16: 20
B17: Emissions to Air (continuously monitored) | H17: 22
B18: Hydrogen Chloride emissions | H18: 26
B19: Sulphur Dioxdie emsissions | H19: 27
B20: Oxides of Notrigen emissions | H20: 28
B21: Total Organic Carbon emissions | H21: 29
B22: Particulate Matter emissions | H22: 30
B23: Carbon Monoxide emissions | H23: 31
B24: Ammonia emissions | H24: 33
A27: Version Control
A28: Section | B28: Information | H28: Date
A29: All | B29: V1 | H29: 2024-01-31
A30: All | B30: V1.1 Note on Energy Form about metering issues. | H30: 2024-01-31
A35: Distribution
A36: Copy | B36: Name, Role | H36: No.
A45: This report is required under the Industrial Emissions Directive’s Article 55(2) requirements on reporting and public information on waste incineration plants and co-incineration plants, which require the operator to produce an annual report on the functioning and monitoring of the plant and make it available to the public.

Sheet Facility Info
A1: =+'Cover Page'!$B$29 -> Annual Performance Report 2023 | E1: =+'Cover Page'!$B$33 -> Wolverhampton Energy from Waste Facility
A3: Plant Description and Design | K3: Notes:
A5: The Wolverhampton Energy from Waste Facility utilises municipal waste to recover energy in the form of electricity and steam for export to the local grid. The facility processes approximately 118,000 tpa of waste in two combustion streams which operate using moving grate furnace systems with a combined capacity of up to 14 tonnes per hour. The heat produced during the incineration process is converted to electrical energy by generating steam in high-pressure boilers and expanding the steam through a steam turbine. When operating at full load, the plant will typically generate around 8 MW of electricity and, after satisfying its own power needs, exports approximately 7.1 MW of electricity to the grid. The installation provides a sustainable method of waste disposal and recovery, predominantly for the area within the administrative boundary of Wolverhampton Metropolitan Borough Council, with smaller quantities of wastes accepted, where capacity and demand exists, from other local authorities within the general vicinity of the plant. The process includes waste reception and storage, combustion, waste heat boilers, abatement of flue gases and the onsite storage of residues produced, namely IBA and APCr. The plant is operated in accordance with its Environmental Management System which is designed to meet the requirements of ISO14001:2004. | K5: Include summary of plant design, design capacity, no. of combustion lines, electrical and heat capacity and any other general information that descibes the facility, its location and purpose
A20: Summary of Operational Processes and Procedures
A22: The principle components of the process comprise the following: Waste Acceptance and Reception: All waste is delivered directly into the fuel storage building and unloaded into the storage bunkers. When required, the waste is discharged onto the feedstock feed system, which delivers the waste into the furnaces via feed hoppers. All waste is accepted in accordance to the sites waste acceptance procedures. Combustion: The feed ram ensures that material falls into the moving grate within the furnace in a controlled manner. The moving grate ensures the waste is agitated as it progresses down the furnace to the ash discharge. Primary air is introduced beneath the grate causing the waste to go through a series of drying and burning areas. Secondary air is introduced from above the grate for combustion control. Auxiliary oil fired burners are located in the combustion chamber for start up and temperature control. The produced gases are resident in the combustion chamber at the 850°C for at least 2seconds before transfer to the boiler , economiser and abatement plant. Electricity Generation: Each furnace is equipped with a 2-pass water tube boiler raising steam at 45 bar and 355°C. The steam then passes to a Steam Turbine and Generator, which exports electricity to the grid. Flue-Gas Cleaning: Flue gas cleaning and pollution control consists of urea injection for De-NOx, semi-dry scrubbing using milk of lime spray for acid gas neutralisation and activated carbon powder injection for absorption and removal of heavy metals, dioxins, VOCs and other harmful substances. Bag filters remove particulates prior to emission to atmosphere via a single 76m high stack. Process effluent is treated onsite in the effluent treatment plant and recycled through the process. Any surplus is discharged to foul sewer. The Plant is regulated under the terms of a Permit issued by the Environment Agency (reference HP3349QK) which contains conditions to ensure that the requirements of the Waste Incineration Directive are incorporated and will be met. North Midlands Operations Ltd operates all of its sites under an Integrated Management System certified to ISO 14001:2015 (environmental management), ISO 9001:2015 (quality management), and ISO 45001:2018 (health and safety management). In terms of plant operation, the incineration processes have been designed against the background of a detailed assessment of the prevailing environmental conditions at the site location, and are based upon the Best Available Technology (BAT) as detailed both in the original Authorisation application and the application for the Permit issued under the Environmental Permitting (England and Wales) Regulations (As Amended). These include, but are not limited to, the following: • Well proven process plant developed specifically for incineration of municipal solid wastes • Efficient, comprehensive process control and monitoring systems to ensure optimum conditions for complete combustion of the wastes and to minimise emissions from the processes • Operations confined within buildings under slight negative pressure in order to contain and minimise emissions such as dust and odour • Qualified and experienced operating and maintenance personnel to implement procedures to ensure that the required high standards are maintained. Operating and Maintenance Procedures are established according to an internationally recognised system of quality assurance • Multi-stage high efficiency flue gas cleaning systems comprising deNOx Selective Non-Catalytic Reduction (SNCR) for the removal of oxides of nitrogen, activated carbon and lime semi-dry acid gas scrubbing for controlling acid gas, dioxins/furans and mercury emissions • Final stage flue gas abatement for particulate materials using fabric filtration • Residues from the combustion process and from the flue gas cleaning system disposed of by approved means, maximising recycling wherever possible • Waste water from the process is neutralised and recycled as far as is practicable to minimise the quantities released to sewers • Provision of bunds or double skinned vessels for storage of fuel and chemicals in order to prevent accidental and inappropriate discharge to the public sewers and watercourse. • The site complies with the new Waste Incineration BAT Conclusions, which came into effect on 03.12.2023. | K22: Include summary of key processes and procedures such as (but not limited to); waste reception, control rooms, grate, bed and bolier, energy & heat generation, cooling systems, residue management, emission controls, health and safety systems, maintenance

Sheet Operational Data
A1: =+'Cover Page'!$B$29 -> Annual Performance Report 2023 | E1: =+'Cover Page'!$B$33 -> Wolverhampton Energy from Waste Facility
A3: Operational Data
A4: Plant Size | B4: 118000 | D4: tonnes pa | F4: MWth | G4: 8 | H4: MWe | J4: Notes:
A5: No. of combustion lines | B5: 2 | D5: No. of Turbines: | F5: 1 | J5: * - RDF to include SRF
J6: ** - Combusted tonnage = tonnes delivered in period + (tonnes in bunker at start of period – tonnes in bunker at end of period), or equivalent calculation depending on plant type
A7: Waste types received | B7: Unit | C7: Q1 | D7: Q2 | E7: Q3 | F7: Q4 | G7: Year Total | H7: %
A8: Household / Local Authority | B8: tonnes | C8: 16910 | D8: 17453 | E8: 16706 | F8: 16207 | G8: =SUM(C8:F8) -> 67276 | H8: =IF(G8>0,G8/$G$18,"-") -> 0.6894304277
A9: Commercial & Industrial | C9: 9326 | D9: 11075 | E9: 7899 | F9: 2006 | G9: =SUM(C9:F9) -> 30306 | H9: 0.3105695723 | J9: *** - CHP plants only
A10: Hazardous | G10: 0 | H10: - | J10: **** Availability Definition: 'the availability of a line is to be calculated by the number of hours the line reported Continuously Monitored emission levels to the Regulator through the calendar year divided by the total number of hours in that year. The overall plant availability is calculated as the Mean of all lines in the plant. For clarity this includes periods of abnormal operation.' Rationale: The primary function of an Energy from Waste facility is the disposal of waste. It follows therefore that the availability of a plant is determined by the period of time a facility spends undertaking this activity.
A11: Clinical | G11: 0 | H11: -
A12: Waste wood (biomass) | G12: 0 | H12: -
A13: Refuse Derived Fuel * - H'hold/LA | G13: =SUM(C13:F13) -> 0 | H13: -
A14: Refuse Derived Fuel * - C&I | G14: 0 | H14: -
A15: Other [Please specify] | G15: 0 | H15: -
A16: Other [Please specify] | G16: 0 | H16: -
A17: Other [Please specify] | G17: 0 | H17: -
A18: Total waste received | C18: =SUM(C8:C17) -> 26236 | D18: =SUM(D8:D17) -> 28528 | E18: =SUM(E8:E17) -> 24605 | F18: =SUM(F8:F17) -> 18213 | G18: 97582
A19: Rejected Waste | G19: =SUM(C19:F19) -> 0 | H19: =IF(G19>0,G19/$G$18,"-") -> -
A20: Unprocessed waste transferred out | G20: =SUM(C20:F20) -> 0 | H20: =IF(G20>0,G20/$G$18,"-") -> -
A21: Total waste combusted ** | C21: 26455 | D21: 28649 | E21: 25196 | F21: 17739 | G21: =SUM(C21:F21) -> 98039
J22: Password for protected cells A password has been set to prevent accidental editing of cells with formulae. If you still need to make an edit for some reason then the password = 1234
A23: Energy Usage / Export | B23: Unit | C23: Q1 | D23: Q2 | E23: Q3 | F23: Q4 | G23: Year Total | H23: KWh/te
A24: Power Generated | B24: MWh | C24: 11992 | D24: 11772 | E24: 9176 | F24: 2537 | G24: =SUM(C24:F24) -> 35477 | H24: =IF(G24>0,G24*1000/$G$21,"-") -> 361.8661961
A25: Power Exported | C25: 9775 | D25: 9532 | E25: 7045 | F25: 1893 | G25: =SUM(C25:F25) -> 28245 | H25: =IF(G25>0,G25*1000/$G$21,"-") -> 288.0996338
A26: Power Used on site | C26: 2217 | D26: 2241 | E26: 2131 | F26: 644 | G26: =SUM(C26:F26) -> 7233 | H26: =IF(G26>0,G26*1000/$G$21,"-") -> 73.77676231
A27: Power Imported | C27: 35.7 | D27: 0 | E27: 0 | F27: 0 | G27: 35.7 | H27: =IF(G27>0,G27*1000/$G$21,"-") -> 0.3641408011
A28: Parasitic Load | B28: % | C28: =IF(C24>0,1-C25/(C24+C27),"-") -> 0.1872926661 | D28: =IF(D24>0,1-D25/(D24+D27),"-") -> 0.1902820251 | E28: =IF(E24>0,1-E25/(E24+E27),"-") -> 0.2322362685 | F28: =IF(F24>0,1-F25/(F24+F27),"-") -> 0.2538431218 | G28: =IF(G24>0,1-G25/(G24+G27),"-") -> 0.2046507306
A29: Thermal Energy Produced *** | B29: MWh | G29: =SUM(C29:F29) -> 0 | H29: =IF(G29>0,G29*1000/$G$21,"-") -> -
A30: Thermal Energy Exported *** | G30: 0 | H30: =IF(G30>0,G30*1000/$G$21,"-") -> -
A31: R1 value (if applicable) | B31: R1
A33: Waste Disposal & Recovery | B33: Unit | C33: Q1 | D33: Q2 | E33: Q3 | F33: Q4 | G33: Year Total | H33: % inputs
A34: APC Residues - produced | B34: tonnes | C34: 792 | D34: 801 | E34: 588 | F34: 519 | G34: =SUM(C34:F34) -> 2700 | H34: =IF(G34>0,G34/$G$21,"-") -> 0.02754006059
A35: IBA - produced | C35: 4162 | D35: 4821 | E35: 4292 | F35: 3129 | G35: 16404 | H35: =IF(G35>0,G35/$G$21,"-") -> 0.1673211681
A36: Metals recycling | C36: 375 | D36: 354 | E36: 345 | F36: 181 | G36: =SUM(C36:F36) -> 1255 | H36: 0.01280102816
A37: Other | C37: 0 | D37: 0 | E37: 0 | F37: 0 | G37: =SUM(C37:F37) -> 0 | H37: -
A38: Other | C38: 0 | D38: 0 | E38: 0 | F38: 0 | G38: 0 | H38: -
A39: Other | C39: 0 | D39: 0 | E39: 0 | F39: 0 | G39: 0 | H39: -
A41: Raw Material Usage | B41: Unit | C41: Q1 | D41: Q2 | E41: Q3 | F41: Q4 | G41: Year Total | H41: kg or Ltr /te
A42: Mains Water | B42: ltrs | C42: 27588 | D42: 23690 | E42: 26066 | F42: 16908 | G42: =SUM(C42:F42) -> 94252 | H42: =IF(G42>0,G42/$G$21,"-") -> 0.961372515
A43: Other Water | B43: ltrs | G43: 0 | H43: =IF(G43>0,G43/$G$21,"-") -> -
A44: Ammonia | B44: kgs | G44: 0 | H44: -
A45: Urea | B45: kgs | C45: 46000 | D45: 67000 | E45: 57000 | F45: 24000 | G45: =SUM(C45:F45) -> 194000 | H45: 1.978804353
A46: Activated Carbon | B46: kgs | C46: 7000 | D46: 5000 | E46: 3000 | F46: 9000 | G46: 24000 | H46: 0.2448005386
A47: Lime / hydrated lime | B47: kgs | C47: 227000 | D47: 229000 | E47: 172000 | F47: 116000 | G47: 744000 | H47: 7.588816695
A48: Fuel oil | B48: ltrs | C48: 22040 | D48: 25690 | E48: 26057 | F48: 43950 | G48: 117737 | H48: 1.200920042
A49: Gas | B49: cuf | G49: 0
A50: HCl | B50: ltrs | C50: 3850 | D50: 4694 | E50: 7078 | F50: 6623 | G50: 22245 | H50: 0.2268994992
A51: Caustic Soda | B51: ltrs | C51: 3416 | D51: 4092 | E51: 6247 | F51: 6954 | G51: 20709 | H51: 0.2112322647
A53: Summary | B53: Line/Unit | C53: Q1 | D53: Q2 | E53: Q3 | F53: Q4 | G53: Year Total | I53: Hrs in year
A54: Availability of waste combustion by line, hrs **** | B54: 1 | C54: 2036 | D54: 2034 | E54: 2190.25 | F54: 1384.6 | G54: =SUM(C54:F54) -> 7644.85 | H54: =+G54/$I$54 -> 0.8726997717 | I54: 8760
B55: 2 | C55: 1769.75 | D55: 2009.25 | E55: 1620.5 | F55: 1275.8 | G55: 6675.3 | H55: =+G55/$I$54 -> 0.7620205479
B56: 3 | G56: 0 | H56: 0
B57: 4 | G57: 0 | H57: 0
B58: 5 | G58: =SUM(C58:F58) -> 0 | H58: 0
A59: Overall Availability, mean avg. of all lines, hrs | C59: =AVERAGE(C54:C55) -> 1902.875 | D59: =AVERAGE(D54:D55) -> 2021.625 | E59: 1905.375 | F59: 1330.2 | G59: =AVERAGE(G54:G58) -> 2864.03 | H59: 0.3269440639
A60: Hours of turbine operations, hrs | B60: 1 | C60: 2047.5 | D60: 2129.5 | E60: 2145.9 | F60: 729 | G60: 7051.9 | H60: 0.8050114155
A61: Hours of turbine operations, hrs | B61: 2 | G61: 0 | H61: 0
A62: Hours of heat / steam export | G62: 0 | H62: =IF(B62>0,G61/I54,"n/a") -> n/a
A63: Net Calorific Value of waste | B63: MJ/kg | C63: 8.349 | D63: 8.393 | E63: 8.358 | F63: 6.459
A64: Abnormal Events | B64: qty. | C64: 0 | D64: 0 | E64: 1 | F64: 0 | G64: 1 | H64: =IF(G64>0,"yes","no") -> yes
A65: Abnormal operation | B65: hours | E65: 0.5 | G65: 0.5 | H65: =+(G65)/I54 -> 5.707762557e-05
A66: Permit Breaches | B66: qty. | C66: 7 | D66: 4 | E66: 5 | F66: 4 | G66: 20 | H66: =IF(G66>0,"yes","no") -> yes

Sheet Operational Summary
A1: =+'Cover Page'!$B$29 -> Annual Performance Report 2023 | E1: =+'Cover Page'!$B$33 -> Wolverhampton Energy from Waste Facility
A3: Summary of Plant Operations and Maintenance during the reporting year | K3: Notes:
A5: • In 2023 tube leaks have been the main reason of boiler unavailability in Wolverhampton followed by common parts issues. The boiler 1 availability for the year was 87.3% & boiler 2 76.21%. The turbine unavailability has been mainly impacted by boilers but performance was poor. The overall turbine availability for the year was 85%. • Extensive scheduled maintenance was undertaken at the plants annual planned shutdown period: o Boilers thorough inspections performed. Complete replacement superheater panels in boiler 2 and 2 panels in boiler 1. Additionally boiler 1 had half a waterwall replaced. Boiler 1 had the top section bends replaced. o Soot blowers and air hammers inspected and maintained. o Combustion system thoroughly inspected and worn parts replaced. o Auxiliary burners inspected and overhauled. o Hydraulic packs serviced. o Both boiler pressure safety valves, as well as common vessels and main valves inspected / serviced. o Bag house filters and scrubbers cleaned, inspected and repaired where needed. The program of bags replacement continued. o Ducting and expansion joints inspections and repairs made. With replacement of the stack expansion joints on both streams o Fly ash and bottom ash conveyors inspected and serviced. o Lime, urea and activated carbon systems cleaned and inspected. With a major upgrade of the carbon and urea system to achieve Bref. o Main fans and pumps inspected and serviced. The main electrical motors have been tested. FD1 motor replaced and ID2 motor replaced o Main instrumentation calibrated. o Turbine, generator and gearbox stripped and removed from site for major overhaul and re-blade. o Generator electrical test performed. o Main electrical systems inspected and tested. Turbine with be rebuilt onsite, commissioned and return to service 27th February 2023 | K5: Include summary of key operational and/or mainteanance activity undertaken in the year, such as any major component upgrades and/or replacements
A29: Summary of Residue Handling for the reporting year
A31: add text here, 2 main sources of residue arise from the operation of the plant: - Incinerator Bottom ash (IBA) (which also includes ferrous metals discharged within the ash) - Air Pollution Control residues (APCr) Residues from the flue gas treatment process (APCr) are discharged into an enclosed system which feed into double-skinned heavy-duty bags prior to removal from site for controlled treatment and disposal. These residues account for under 5% of the total weight of all refuse processed by the facility. The residues were sent - for most of 2023 - to Castle Waste Services Ltd's Ilkeston Waste Treatment and Transfer Facility (AP3337SJ). In mid November 2023, the residues were redirected to Augean South Ltd's Kings Cliffe East Northants Resource Management Facility (YP3138XB). These residues are ultimately disposed of in specialist landfill. Incinerator Bottom Ash (IBA) is discharged from the lower end of each grate into a water filled ash discharger, where it is quenched and then ejected onto a conveyor system. Ferrous metals are removed via magnetic separation. The resulting materials are stored in the storage bunkers prior to removal from site for recycling - the storage capacity for bottom ash residues and separated ferrous metals is sufficient to ensure 4 days storage. IBA is transferred offsite for further treatment and processing sites regularly between Mondays and Fridays and are scheduled to ensure sufficient storage capacity is maintained at all times. Collections are available at weekends if operational conditions require this facility. Bottom ash from North Midlands Operations Ltd is currently being sent to Johnsons Aggregates & Recycling Ltd Midlands Urban Mine in Ilkeston (MP3430AM) and Bunny site (DP3493CT). At these sites, additional ferrous and trace metals is removed, and the remaining material being further processed into usable aggregate in a zero to landfill process. | K31: Include in here a summary of residue handling regimes and destinations

Sheet Perf. Form 1
A1: =+'Cover Page'!C39 -> 2023 | B1: Annual Reporting Performance Form 1
A3: =+'Cover Page'!B31 -> Permit EPR/HP3349QK | F3: Operator: | G3: =+'Cover Page'!B37 -> North Midlands Operations Ltd
A4: Facility: | B4: =+'Cover Page'!B33:I33 -> Wolverhampton Energy from Waste Facility | F4: Form: | G4: Performance 1
A6: Reporting Period from: | D6: 1st January 2023 | F6: to: | G6: 31st December 2023
A8: =+A1 -> 2023 | B8: Annual Reporting of Waste Disposal and Recovery
A9: Waste Description | C9: Disposal Route(s) | E9: Disposal Tonnes | G9: Recovery Tonnes | I9: % / tonne of waste incinerated
A10: 1) Hazardous Wastes
A11: APC Residues | C11: D13 | E11: 2700 | I11: =IF((E11+G11)>0,(E11+G11)/'Operational Data'!$G$21, "-") -> 0.02754006059
A12: IBA | I12: =IF((E12+G12)>0,(E12+G12)/'Operational Data'!$G$21, "-") -> -
I13: =IF((E13+G13)>0,(E13+G13)/'Operational Data'!$G$21, "-") -> -
I14: =IF((E14+G14)>0,(E14+G14)/'Operational Data'!$G$21, "-") -> -
A15: Total Hazardous Waste | E15: =SUM(E11:F14) -> 2700 | G15: =SUM(G11:H14) -> 0 | I15: =IF((E15+G15)>0,(E15+G15)/'Operational Data'!$G$21, "-") -> 0.02754006059
A17: 2) Non-Hazardous Wastes
A18: IBA | C18: R04 | G18: 16404 | I18: =IF((E18+G18)>0,(E18+G18)/'Operational Data'!$G$21, "-") -> 0.1673211681
A19: Ferrous Metal | C19: R04 | G19: 1255 | I19: =IF((E19+G19)>0,(E19+G19)/'Operational Data'!$G$21, "-") -> 0.01280102816
I20: =IF((E20+G20)>0,(E20+G20)/'Operational Data'!$G$21, "-") -> -
I21: =IF((E21+G21)>0,(E21+G21)/'Operational Data'!$G$21, "-") -> -
I22: =IF((E22+G22)>0,(E22+G22)/'Operational Data'!$G$21, "-") -> -
A23: Total Non-Hazardous Waste | E23: =SUM(E18:F22) -> 0 | G23: =SUM(G18:H22) -> 17659 | I23: =IF((E23+G23)>0,(E23+G23)/'Operational Data'!$G$21, "-") -> 0.1801221963
A24: TOTAL WASTE | E24: =+E23+E15 -> 2700 | G24: =+G23+G15 -> 17659 | I24: =IF((E24+G24)>0,(E24+G24)/'Operational Data'!$G$21, "-") -> 0.2076622569
A26: Operator’s comments :
A31: =+A1 -> 2023 | B31: Annual Reporting of Water and Other Raw Material Usage
A32: Raw Material | E32: Usage | G32: Unit | H32: Specific Useage | J32: Unit
A33: Mains Water | E33: =+'Operational Data'!G42 -> 94252 | G33: m3 | H33: =IF(E33>0,E33/'Operational Data'!$G$21,"-") -> 0.961372515 | J33: m3/te
A34: Total Water | E34: =+'Operational Data'!G43+'Operational Data'!G42 -> 94252 | G34: m3 | H34: =IF(E34>0,E34/'Operational Data'!$G$21,"-") -> 0.961372515 | J34: m3/te
A35: Urea / Ammonia | E35: =+'Operational Data'!G44 -> 0 | G35: kg | H35: =IF(E35>0,E35/'Operational Data'!$G$21,"-") -> - | J35: kg/te
A36: Activated Carbon | E36: =+'Operational Data'!G46 -> 24000 | G36: kg | H36: =IF(E36>0,E36/'Operational Data'!$G$21,"-") -> 0.2448005386 | J36: kg/te
A37: Lime / hydrated lime / Sodium Bicarb. | E37: =+'Operational Data'!G47 -> 744000 | G37: kg | H37: =IF(E37>0,E37/'Operational Data'!$G$21,"-") -> 7.588816695 | J37: kg/te
A39: Operator’s comments :
A43: =+A31 -> 2023 | B43: Annual Reporting of other performance indicators
A44: Parameter | C44: Results by Line
C45: A1 | D45: A2 | E45: A3 | F45: A4 | G45: A5 | I45: Turbine 1 | J45: Turbine 2
A46: Operating hours for the year, hours | C46: 7971 | D46: 7875
A47: Number of periods of abnormal operation, qty. | D47: 1
A48: Cumulative hours of abnormal operation for this year, hours | D48: 0.5
A50: Operator’s comments :
A54: Signed: | G54: Date:

Sheet Energy Form 1
A1: =+'Cover Page'!C39 -> 2023 | B1: Annual Reporting of Energy Usage/Export
A3: =+'Cover Page'!B31 -> Permit EPR/HP3349QK | F3: Operator: | G3: =+'Cover Page'!B37 -> North Midlands Operations Ltd
A5: Facility: | B5: =+'Cover Page'!B33:I33 -> Wolverhampton Energy from Waste Facility | F5: Form: | G5: Energy 1
A7: Reporting Period from: | D7: =+'Perf. Form 1'!D6:E6 -> 1st January 2023 | F7: to: | G7: =+'Perf. Form 1'!G6:H6 -> 31st December 2023
A9: Energy Source | D9: Energy Usage | F9: Unit | G9: Specific Useage (KWh/tonne incinerated
A10: Electricity Produced | D10: =+'Operational Data'!G24 -> 35477 | F10: MWh | G10: =+'Operational Data'!H24 -> 361.8661961
A11: Electricity Imported | D11: =+'Operational Data'!G27 -> 35.7 | F11: MWh | G11: =+'Operational Data'!H27 -> 0.3641408011
A12: Electricity Exported | D12: =+'Operational Data'!G25 -> 28245 | F12: MWh | G12: =+'Operational Data'!H25 -> 288.0996338
A13: Gas Oil | D13: 994.79 | F13: tonnes
A14: Steam/hot water exported | D14: =+'Operational Data'!G30 -> 0 | F14: GWh | G14: =+'Operational Data'!H30 -> -
A18: Operator’s comments :
A19: Recently the City of Wolverhampton Council has assumed responsibility for contracting with the site's energy supplier. However, since this - early October - there have been signficant issues accessing the usage data from the remote metering. The Wolverhampton EfW Plant Manager has made extensive efforts to gain access to this data from CWC or Stark Energy without success. It is intended that NMOL now fit local on-site metering to circumnavigate this issue.
A29: Signed: | G29: Date:

Sheet Permit Compliance
A1: =+'[1]Cover Page'!$B$29 -> Annual Performance Report 2023
A3: Summary of Permit Compliance | G3: =+'Cover Page'!$B$33 -> Wolverhampton Energy from Waste Facility
A5: Compliance with permit limits for continuously monitored pollutants
A7: The plant met its emission limits as shown in the table below:
A8: Substance | C8: Percentage time compliant during operationNote 1 | L8: Notes:
C9: Half-hourly limit | F9: Daily limit | L9: Note 1: Please report to 2 decimal places, i.e. xx.xx% Note 2: Please provide a brief summary of each notification or non-compliance in the table (rather than just referring to notifications that were sent to the Regulator), including stating the value of measured result for any ELV exceedances.
A10: Particulates | C10: 0.9999 | F10: 1
A11: Oxides of nitrogen | C11: 0.9999 | F11: 1
A12: Sulphur dioxide | C12: 0.9999 | F12: 1
A13: Carbon monoxide | C13: 1 | F13: 0.9945
A14: Total organic carbon | C14: 0.9997 | F14: 1
A15: Hydrogen chloride | C15: 0.9998 | F15: 0.9945
A16: Hydrogen fluoride | C16: 1 | F16: 0.9984
A17: Average | C17: =AVERAGE(C10:E16) -> 0.9998857143 | F17: =AVERAGE(F10:I16) -> 0.9982
A19: Summary of any notifications or non-compliances under the permit
A20: Date | B20: Summary of notification or non-compliance [including Line/Reference]Note 2 | E20: Reason | H20: Measures taken to prevent reoccurrence
A21: 2023-01-16 | B21: A1 VOC HH Exceedance (35.65) | E21: Electrical fault on feed table. | H21: Fixed table. Reviewed maintenance.
A22: 2023-02-14 | B22: A1 HCl HH Exceedance (68.48) | E22: Poor waste quality. | H22: Mix waste more thoroughly.
A23: 2023-03-10 | B23: A1 VOC HH Exceedance (32.42) | E23: Poor waste quality. | H23: Mix waste more thoroughly.
A24: 23/03/2023 | B24: A1 HCl Daily Exceedance (11.63) | E24: Lime system issue. | H24: Replaced turbine with spare.
A25: 29/03/2023 | B25: A1 HCl Daily Exceedance (10.32) | E25: Bredell pump issue. | H25: Unblocked. Maintained.
A26: 31/03/2023 | B26: A1 CO Daily Exceedance (106.16) | E26: Large steel bin blockage. | H26: Communicated with client regarding feedstock expectations.
A27: 31/03/2023 | B27: A1 VOC HH Exceedance (189.6) | E27: As above; ash discharger blocked. | H27: Communicated with client regarding feedstock expectations.
A28: 17/04/2023 | B28: A2 SO2 HH Exceedance (201.38) | E28: Poor waste quality. | H28: Mix waste more thoroughly.
A29: 2023-04-05 | B29: A1 VOC HH Exceedance (21.15) | E29: Extremely wet waste. | H29: Leave wet waste to dry and mix better.
A30: 2023-05-06 | B30: A2 SO2 HH Exceedance (211.01) | E30: High plastic content of waste. | H30: Mix waste more thoroughly.
A31: 2023-05-26 | B31: A2 NOx HH Exceedance (488.77) | E31: Fault with urea screw. | H31: Replaced.
A32: 24/07/2023 | B32: A2 NOx HH Exceedance (448.44) | E32: Blocked urea pipe. | H32: Unblocked. Material flow monitor investigated.
A33: 2023-08-18 | B33: A1 PM HH Exceedance (87.57) | E33: Baghouse blockage | H33: Retraining.
A34: 2023-08-18 | B34: A1 PM HH Exceedance (35.13) | E34: Baghouse blockage | H34: Retraining.
A35: 2023-08-23 | B35: A2 HCl HH Exceedance (75.54) | E35: Atomiser blockage | H35: Replaced atomiser.
A36: 2023-09-08 | B36: A2 VOC HH Exceedance (20.40) | E36: Poor waste quality. | H36: Mix waste more thoroughly.
A37: 2023-09-22 | B37: A2 VOC HH Abnormal Ops (44.18) | E37: Burner malfunctioning | H37: Repaired burner.
A38: 2023-10-06 | B38: A1 HCl HH Exceedance (67.72) | E38: Lime turbine blockage. | H38: More frequent cleaning.
A39: 2023-10-13 | B39: A2 CO HH Exceedance (65.06) | E39: Burner nozzle blocked. | H39: Cleared blockage.
A40: 2023-10-13 | B40: A2 VOC HH Exceedance (33.65) | E40: Burner fault. | H40: Maintained.
A41: 2023-10-19 | B41: A2 CO Daily Exceedance (72.08) | E41: Burner fault. | H41: Full overhaul at outage.
A43: Summary of any complaints received and actions to taken to resolve them.
A44: Date | B44: Summary of complaint [including Line/Reference] | E44: Reason * | H44: Communicated with client regarding feedstock expectations.
E50: * including whether substantiated by the operator or the EA

Sheet Improvements
A1: =+'Cover Page'!$B$29 -> Annual Performance Report 2023 | E1: =+'Cover Page'!$B$33 -> Wolverhampton Energy from Waste Facility
A3: Summary of Plant Improvements
A5: Summary of any efficiency improvements that have been completed within the year.
A6: • LED lamp replacement is an ongoing project with additional upgrade of some been changed to have battery backup. • The enhanced cleaning regime on the ACC is a consolidated practice (now 3 times/year). Additionally, we have carried out a wet clean to increase performance. During the outage, the blades of the ACC fans are cleaned and the blade tip angles checked and adjusted. • The turbine has been sent away during October outage, although not back till end of February 2024 we are hoping for significant performance improvements with output.
A16: Summary of any permit improvement conditions that have been completed within the year and the resulting environmental benefits.
A17: The site has completed IC2-IC4 of the EPR/HP3349QK/V002 IC2: The site submitted a report on whether waste feed to the plant can be proven to have a low and stable mercury content. We are now able to consistently achieve the new (lower) Hg ELV. IC3: The site submitted a report on whether dioxin emissions to air are stable. We are now able to consistently achieve the new (lower) D&F ELV. IC4: We submitted a report calculating the Gross Electrical Efficiency of the plant.
A27: Summary of any changes to the plant or operating techniques which required a variation to the permit and a summary of the resulting environmental impact.
A28: N/A
A38: Summary of any other improvements made to the plant or planned to be made and a summary of the resulting environmental benefits.
A39: • Urea panel upgrades to support of BREF compliance. • Carbon panel upgrades and system upgrades to support of BREF compliance. • Replaced various amounts of valves to reduce leaks. • Continued replacement of existing lighting with LEDs and emergency backups. • Replacement of superheater panels to reduce downtime in leaks, reducing fuels costs for startup. • Replacement of economizer tube bends on boiler 2, again to reduce downtime in leaks. • Scrubber 2 major corrosion causing leaks and air ingress repaired and plated. • Reduction in emission set points to support of BREF compliance.

Sheet Public Liasion
A1: =+'Cover Page'!$B$29 -> Annual Performance Report 2023 | E1: =+'Cover Page'!$B$33 -> Wolverhampton Energy from Waste Facility
A3: Details of Public & Stakeholder Liasion
A5: Summary of events held during the reporting year.
A6: Date | C6: Description
A7: Jan 23-Dec 23 | C7: Routine liaison meetings with CWC on health, safety, environmental and operational matters.
A16: List of events planned for next year
A17: Date | C17: Description
A18: Jan 24-Dec 24 | C18: Continue to hold routine liaison meetings with CWC on health, safety, environmental and operational matters.
A29: If you wish to be involved in the public liasion programme, please contact _________________

Sheet CO2 N2O
A1: =+'Cover Page'!$B$29 -> Annual Performance Report 2023 | C1: =+'Cover Page'!$B$33 -> Wolverhampton Energy from Waste Facility
A3: Carbon dioxide emissions and biogenic content of waste inputs | F3: Notes:
A5: Carbon dioxide emissions (all types of plant)
B6: Annual mass of carbon dioxide released | C6: tonnes | D6: =98039*0.942 -> 92352.738
B7: Annual mass of carbon dioxide released per tonne of waste burned | C7: t CO2 / t waste | D7: =D6/98039 -> 0.942
B8: Annual mass of carbon dioxide released per MWh of energy exported | C8: t CO2 / MWh export | D8: =D6/28245 -> 3.269702177
B9: Description of how annual carbon dioxide mass emission has been calculated. See Note 1 | C9: 0.942 tCO2/t waste as per Tolvik report 2022 | F9: Note 1: Where available, data from CO2 CEMS should be used. Otherwise, only where no CEMS data is available, a suitable emissions factor should be used based on the tonnage of waste burned e.g.0.942 tCO2/t waste as per Tolvik report 2022, or other justified emissions factor - refer to embedded Environment Agency guidance note above or updated version for suitable descriptive text.
A10: Nitrous oxide emissions (only plants which use ammonia or urea to abate NOx emissions)
B11: Annual mass emissions of nitrous oxide | C11: tonnes N2O | D11: =98039*0.0981/1000 -> 9.6176259
B12: Description of how annual nitrous oxide mass emission has been calculated See Note 2 | C12: 0.0981 kgN20/t waste as per 2021 PI data | F12: Note 2: Where available, data from N2O CEMS should be used. If no CEMS data is available, from periodic monitoring. Otherwise, a suitable emissions factor should be used based on the tonnage of waste burned e.g. 0.0981 kgN20/t waste as per 2021 Pollution Inventory data for plants with urea-based SNCR - refer to embedded Environment Agency guidance note above or updated version for suitable descriptive text.
A13: Total annual carbon dioxide and nitrous oxide emissions. See Note 3. | C13: tonnes CO2e | D13: =D6+(D11*298) -> 95218.79052 | F13: Note 3: Total annual carbon dioxide and nitrous oxide emissions reported as carbon dioxide equivalent where 1 tonne nitrous oxide is equivalent to 298 tonne carbon dioxide
A14: Biogenic CO2 emissions (See Note 4) | F14: Note 4: Only plants combusting residual municipal waste, refuse derived fuel or solid recovered fuel
B15: Percentage of total carbon dioxide emissions arising from biogenic waste | C15: % | D15: 0.5412
B16: No. of measurements undertaken | C16: Number | D16: 1
B17: Description of how percentage biogenic carbon dioxide emissions have been measured or calculated. See Note 5 | C17: Assumed to be the same as the biogenic CO2 fraction of the total CO2 emissions from the plant. | F17: Note 5: Examples include direct measurement via C14 method or BIOMA software - refer to embedded Environment Agency guidance note above or updated version for suitable descriptive text, quoting standards where relevant. Otherwise, as an approximation (and in lieu of any more accurate metrics which may be developed in future), the measured or estimated biogenic fraction by net calorific value can be assumed to be the same as the biogenic CO2 fraction of the total CO2 emissions from the plant.
A18: Biogenic fraction of waste feedstock (See Note 4)
B19: Yearly average biogenic percentage of the waste by net calorific value (NCV) | C19: % | D19: 0.5412
B20: If sampling undertaken, no. of samples used to ascertain average biogenic % above | C20: Number | D20: 1
B21: Description of how biogenic percentage (by NCV) has been calculated or estimated. See Note 6 | C21: In accordance with Ofgem-approved fuel measurement and sampling plan. | F21: Note 6: Where available, data from waste sampling should be used; otherwise, an estimated figure with justification can be used, or a figure assumed on the basis of a national average e.g. 2017 WRAP data for residual waste of 51.8% biogenic energy content - refer to embedded Environment Agency guidance note above or updated version for suitable descriptive text, quoting standards where relevant.
B23: Comments:

Sheet Residue Quality
A1: =+'Cover Page'!$B$29 -> Annual Performance Report 2023 | E1: =+'Cover Page'!$B$33 -> Wolverhampton Energy from Waste Facility
A3: Residue Quality Monitoring Requirements
A5: Summary of monitoring undertaken and compliance
A6: IBA and APCr are tested in accordance with the site's permit.
A8: IBA is also sampled and analysed in accordance with the ESA protocol.
A13: Commentary on any specific events
A14: Date & Event | C14: Description
A27: Residue Quality Monitoring Results
A28: Parameter (unit) | C28: Limit | D28: Normal Operation
D29: Bottom ash | F29: APC Residues
A30: Loss on Ignition (average %) | C30: <5% | D30: 3.64
A31: Total Organic Carbon (average %) | C31: <3% | D31: 0.94
A32: No. of Assessments Undertaken | C32: --- | D32: 28
A33: No. of Hazardous Results | C33: --- | D33: 0
A35: Comments :
A36: No Hazardous reports for this facility laboratory testing were returned in 2023

Sheet Water
A1: =+'Cover Page'!$B$29 -> Annual Performance Report 2023 | E1: =+'Cover Page'!$B$33 -> Wolverhampton Energy from Waste Facility
A3: Emissions to Water
A5: Summary of monitoring undertaken and compliance
A13: Commentary on any specific events
A14: Date & Event | C14: Description
A22: Emissions to Water / Sewer
A23: Parameter | D23: Monitoring Frequency | F23: Limit | G23: Target | H23: Max. | I23: Average
A24: pH | D24: Annual | F24: 6-10 | G24: N/A | H24: N/A | I24: 8.3
A25: SS | D25: Annual | F25: 400 | G25: N/A | H25: N/A | I25: 65
A26: Cd | D26: Annual | G26: N/A | H26: N/A | I26: 0.00038
A27: Cr | D27: Annual | G27: N/A | H27: N/A | I27: 0.0098
A28: Cu | D28: Annual | G28: N/A | H28: N/A | I28: 0.051
A29: Pb | D29: Annual | G29: N/A | H29: N/A | I29: 0.018
A30: Ni | D30: Annual | G30: N/A | H30: N/A | I30: 0.018
A31: Zn | D31: Annual | F31: 5 | G31: N/A | H31: N/A | I31: 0.019
A32: COD | D32: Annual | F32: 800 | G32: N/A | H32: N/A | I32: 110

Sheet Air (periodic)
A1: =+'Cover Page'!$B$29 -> Annual Performance Report 2023 | E1: =+'Cover Page'!$B$33 -> Wolverhampton Energy from Waste Facility
A3: Emissions to Air (periodically monitored)
A5: Summary of monitoring undertaken, standards used and compliance | K5: Notes:
A6: In accordance with Permit. | K6: Template may require adjustment for any bespoke monitoring requirements of permit - please also check that all default ELV values, reference periods and the stated oxygen reference value match those for your plant, and edit if necessary!
A9: Results of emissions to air that are periodically monitored - oxygen reference 6%
A10: Substance | C10: Ref. Period | D10: Emission Limit Value* | F10: Average | K10: User to add additional tables as necessary, depending on whether quarterly or bi-annual reporting is required for the compliance year
F11: A1 | G11: A2 | H11: A3 | I11: A4 | J11: A5
A12: Hydrogen fluoride | C12: 1 hr | D12: 2 mg/m3 | F12: 0.6 | G12: 0.365
A13: Cd and Th and their compounds | C13: 0.5-8hrs | D13: 0.05 mg/m3 | F13: 0.00105 | G13: 0.00105
A14: Hg and its compounds | C14: 0.5-8hrs | D14: 0.05 mg/m3 | F14: 0.004 | G14: 0.0025 | K14: * Denotes limits that were in force until 2 December 2023; from 3 December 2023 the following new limits applied (those not listed remained unchanged):
A15: Sb, As, Pb, Cr, Co, Cu, Mn, Ni, V and their compounds | C15: 0.5-8hrs | D15: 0.5 mg/m3 | F15: 0.026 | G15: 0.042
A16: Dioxins & Furans (I-TEQ) | C16: 6-8hrs | D16: 0.1 ng/m3 | F16: 0.014005 | G16: 0.1008 | K16: Substance | L16: Reference Period | M16: Emission Limit Value
A17: PCBs (WHO-TEQ Humans / Mammals) | C17: 6-8hrs | D17: None set ng/m3 | F17: 0.00155 | G17: 0.00755
A18: PCBs (WHO-TEQ Fish) | C18: 6-8hrs | D18: None set ng/m3 | F18: 0.0001 | G18: 0.00045 | K18: Hydrogen fluoride | L18: Average of three consecutive measurements of at least 30 minutes each | M18: 1 mg/m3
A19: PCBs (WHO-TEQ Birds) | C19: 6-8hrs | D19: None set ng/m3 | F19: 0.0044 | G19: 0.0162 | K19: Cd and Th and their compounds | L19: Average of three consecutive measurements of at least 30 minutes each | M19: 0.02 mg/m3
A20: Dioxins & Furans (WHO-TEQ Humans / Mammals) | C20: 6-8hrs | D20: None set ng/m3 | F20: 0.0258 | G20: 0.08015 | K20: Hg and its compounds | L20: Average of three consecutive measurements of at least 30 minutes each | M20: 0.02 mg/m3
A21: Dioxins & Furans (WHO-TEQ Fish) | C21: 6-8hrs | D21: None set ng/m3 | F21: 0.03 | G21: 0.0923 | K21: Sb, As, Pb, Cr, Co, Cu, Mn, Ni, V and their compounds | L21: Average of three consecutive measurements of at least 30 minutes each | M21: 0.3 mg/m3
A22: Dioxins & Furans (WHO-TEQ Birds) | C22: 6-8hrs | D22: None set ng/m3 | F22: 0.0581 | G22: 0.13825 | K22: Dioxins & Furans (I-TEQ) | L22: 6-8hrs | M22: 0.06 ng/m3
A23: Anthanthrene | C23: 6-8hrs | D23: None set µg/m3 | F23: <0.0014 | G23: <0.0014
A24: Benzo(a)anthracene | C24: 6-8hrs | D24: None set µg/m3 | F24: 0 | G24: <0.0014
A25: Benzo(a)pyrene | C25: 6-8hrs | D25: None set µg/m3 | F25: <0.0014 | G25: <0.0014
A26: Benzo(b)fluoranthene | C26: 6-8hrs | D26: None set µg/m3 | F26: 0 | G26: <0.0014
A27: Benzo(b)naptho(2,1-d) thiophene | C27: 6-8hrs | D27: None set µg/m3 | F27: 0 | G27: <0.0014
A28: Benzo(c)phenanthrene | C28: 6-8hrs | D28: None set µg/m3 | F28: 0 | G28: <0.0014
A29: Benzo(ghi)perylene | C29: 6-8hrs | D29: None set µg/m3 | F29: 0.01 | G29: 0
A30: Benzo(k)fluoranthene | C30: 6-8hrs | D30: None set µg/m3 | F30: 0 | G30: <0.0014
A31: Cholanthrene | C31: 6-8hrs | D31: None set µg/m3 | F31: <0.0014 | G31: <0.0014
A32: Chrysene | C32: 6-8hrs | D32: None set µg/m3 | F32: 0.01 | G32: 0
A33: Cyclopenta(cd)pyrene | C33: 6-8hrs | D33: None set µg/m3 | F33: <0.0014 | G33: <0.0014
A34: Dibenzo(ai)pyrene | C34: 6-8hrs | D34: None set µg/m3 | F34: <0.0014 | G34: <0.0014
A35: Dibenzo(ah)anthracene | C35: 6-8hrs | D35: None set µg/m3 | F35: <0.0014 | G35: <0.0014
A36: Fluoranthene | C36: 6-8hrs | D36: None set µg/m3 | F36: 0.12 | G36: 0.04
A37: Indeno(123-cd) pyrene | C37: 6-8hrs | D37: None set µg/m3 | F37: 0 | G37: <0.0014
A38: Naphthalene | C38: 6-8hrs | D38: None set µg/m3 | F38: 18.4 | G38: 6.86
A39: Comments :

Sheet Air (CEMS)
A1: =+'[2]Cover Page'!$B$29 -> Annual Performance Report 2023 | I1: =+'[2]Cover Page'!$B$33 -> Wolverhampton Energy from Waste Facility
A3: Emissions to Air (continously monitored)
N4: Notes:
A5: Summary of monitoring undertaken, standards used and compliance | N5: Template may require adjustment for any bespoke monitoring requirements of permit
N6: Please check that all default ELV values match those for your plant and edit if necessary!
N7: Report to 1 decimal place
A11: Results of emissions to air that are continuously monitored (maximum and average values for each line) - oxygen reference 11%
A12: Substance | B12: Reference Period | C12: Emission Limit Value** | D12: A1 | F12: A2 | H12: A3 | J12: A4 | L12: A5
D13: Max. | E13: Avg. | F13: Max. | G13: Avg. | H13: Max. | I13: Avg. | J13: Max. | K13: Avg. | L13: Max. | M13: Avg. | N13: ** Denotes limits that were in force until 2 December 2023; from 3 December 2023 the following new limits applied (those not listed remained unchanged):
A14: Oxides of nitrogen | B14: Daily mean | C14: 200 mg/m3 | D14: 189 | E14: 171.62 | F14: 189 | G14: 169.4283333
B15: ½ hourly mean | C15: 400 mg/m3 | D15: 399 | E15: 172.0833333 | F15: 449 | G15: 169.4166667 | N15: Substance | O15: Reference Period | P15: Emission Limit Value
A16: Particulates | B16: Daily mean | C16: 10 mg/m3 | D16: 5 | E16: 0.1158333333 | F16: 2 | G16: 0.25
B17: ½ hourly mean | C17: 30 mg/m3 | D17: 88 | E17: 0.1766666667 | F17: 21 | G17: 0.36 | N17: Oxides of nitrogen | O17: Daily mean | P17: 180 mg/m3
A18: Total Organic Carbon | B18: Daily mean | C18: 10 mg/m3 | D18: 4 | E18: 0.41 | F18: 2 | G18: 0.39 | N18: Particulates | O18: Daily mean | P18: 5 mg/m3
B19: ½ hourly mean | C19: 20 mg/m3 | D19: 190 | E19: 0.4225 | F19: 44 | G19: 0.4375 | N19: Hydrogen chloride | O19: Daily mean | P19: 8 mg/m3
A20: Hydrogen chloride | B20: Daily mean | C20: 10 mg/m3 | D20: 12 | E20: 5.904166667 | F20: 8 | G20: 5.215833333 | N20: Sulphur dioxide | O20: Daily mean | P20: 40 mg/m3
B21: ½ hourly mean | C21: 60 mg/m3 | D21: 180 | E21: 5.916666667 | F21: 76 | G21: 5.25 | N21: Ammonia | O21: Daily mean | P21: 15 mg/m3
A22: Sulphur dioxide | B22: Daily mean | C22: 50 mg/m3 | D22: 33 | E22: 16.85916667 | F22: 45 | G22: 20.25333333
B23: ½ hourly mean | C23: 200 mg/m3 | D23: 124 | E23: 17.5 | F23: 211 | G23: 18.58333333
A24: Carbon monoxide | B24: Daily mean | C24: 50 mg/m3 | D24: 106 | E24: 7.621666667 | F24: 72 | G24: 7.06
B25: ½ hourly mean * | C25: 100 mg/m3 *
B26: 95%ile 10-min avg * | C26: 150 mg/m3 * | D26: 1590 | E26: 10.33333333 | F26: 369 | G26: 7.416666667
A27: Ammonia | B27: Daily mean | C27: No limit set until 03/12/23 | D27: 14 | E27: 4.715833333 | F27: 49 | G27: 8.825
A28: ** = delete as appropriate, depending on whether your plant has half-horly or 10-min CO ELVs
A29: Comments :

Sheet HCl
A1: =+'[2]Cover Page'!$B$29 -> Annual Performance Report 2023 | E1: =+'[2]Cover Page'!$B$33 -> Wolverhampton Energy from Waste Facility
A3: Monitoring of Hydrogen Chloride emissions | D3: Whole Installation | G3: See Notes in Cell Q3 | J3: =+A3 -> Monitoring of Hydrogen Chloride emissions | N3: Per Combustion Line | Q3: Notes:
Q4: User to add logic to complete Whole installation, Table A5:G18. From the data in Per Combustion Line, Table J6:O79, subject to No. of lines installed
A5: mg/Nm3 | B5: 1/2 Hourly Reference Periods | E5: Daily Reference Periods
A6: =+'[2]Cover Page'!C39 -> 2023 | B6: 1/2 hourly HCl ELV | C6: Monthly 1/2 hourly mean | D6: Highest 1/2 hourly maximum | E6: Daily HCl ELV* | F6: Monthly daily mean | G6: Highest daily maximum | J6: =+A6 -> 2023 | K6: mg/Nm3 | L6: Monthly 1/2 hourly mean | M6: Monthly 1/2 hourly maximum | N6: Monthly daily mean | O6: Monthly daily maximum
A7: Jan | B7: 60 | C7: =AVERAGE(L7,L22) -> 6.5 | D7: =M22 -> 42 | E7: 10 | F7: =AVERAGE(N7,N22) -> 6.1 | G7: =MAX(O7,O22) -> 8 | J7: A1 | K7: Jan | L7: 7 | M7: 20 | N7: 6.63 | O7: 8
A8: Feb | B8: 60 | C8: 5.5 | D8: =M23 -> 68 | E8: 10 | F8: 5.735 | G8: 9 | K8: Feb | L8: 6 | M8: 40 | N8: 6.55 | O8: 9
A9: Mar | B9: 60 | C9: 6 | D9: =M9 -> 180 | E9: 10 | F9: 5.71 | G9: 12 | K9: Mar | L9: 7 | M9: 180 | N9: 6.42 | O9: 12 | Q9: Whole Installation table A5:G18:
A10: Apr | B10: 60 | C10: 6 | D10: =M25 -> 38 | E10: 10 | F10: 5.945 | G10: 8 | K10: Apr | L10: 6 | M10: 25 | N10: 6 | O10: 7 | Q10: Mean: for 1/2 hourly and daily periods calculate mean of values across all operational combustion lines for the month
A11: May | B11: 60 | C11: 5.5 | D11: =M11 -> 31 | E11: 10 | F11: 5.675 | G11: 7 | K11: May | L11: 6 | M11: 31 | N11: 6.27 | O11: 7
A12: Jun | B12: 60 | C12: 5.5 | D12: =M12 -> 28 | E12: 10 | F12: 5.79 | G12: 7 | K12: Jun | L12: 6 | M12: 28 | N12: 6.55 | O12: 7
A13: Jul | B13: 60 | C13: 6 | D13: =M13 -> 17 | E13: 10 | F13: 5.88 | G13: 8 | K13: Jul | L13: 6 | M13: 17 | N13: 6.15 | O13: 7 | Q13: Maximum: for 1/2 hourly and daily periods use the highest value across all operational combustion lines for the month
A14: Aug | B14: 60 | C14: 6 | D14: =M29 -> 76 | E14: 10 | F14: 6.32 | G14: 8 | K14: Aug | L14: 6 | M14: 19 | N14: 6 | O14: 8
A15: Sep | B15: 60 | C15: 6 | D15: =M15 -> 39 | E15: 10 | F15: 5.88 | G15: 8 | K15: Sep | L15: 7 | M15: 39 | N15: 6.8 | O15: 8
A16: Oct | B16: 60 | C16: 5.5 | D16: =M16 -> 68 | E16: 10 | F16: 5.43 | G16: 8 | K16: Oct | L16: 6 | M16: 68 | N16: 5.92 | O16: 8
A17: Nov | B17: 60 | C17: 3 | D17: =M32 -> 18 | E17: 10 | F17: 3.1 | G17: 6 | K17: Nov | L17: 2 | M17: 6 | N17: 2.2 | O17: 3
A18: Dec | B18: 60 | C18: 5.5 | D18: =M18 -> 26 | E18: 10 | F18: 5.155 | G18: 8 | K18: Dec | L18: 6 | M18: 26 | N18: 5.36 | O18: 8
E19: * ELV reduced to 8 mg/Nm3 on 3 December 2023 | K19: Annual | L19: =AVERAGE(L7:L18) -> 5.916666667 | M19: =MAX(M7:M18) -> 180 | N19: =AVERAGE(N7:N18) -> 5.904166667 | O19: =MAX(O7:O18) -> 12
J21: =+A6 -> 2023 | K21: mg/Nm3 | L21: Monthly 1/2 hourly mean | M21: Monthly 1/2 hourly maximum | N21: Monthly daily mean | O21: Monthly daily maximum
J22: A2 | K22: Jan | L22: 6 | M22: 42 | N22: 5.57 | O22: 7
K23: Feb | L23: 5 | M23: 68 | N23: 4.92 | O23: 8
K24: Mar | L24: 5 | M24: 18 | N24: 5 | O24: 7
K25: Apr | L25: 6 | M25: 38 | N25: 5.89 | O25: 8
K26: May | L26: 5 | M26: 15 | N26: 5.08 | O26: 7
K27: Jun | L27: 5 | M27: 19 | N27: 5.03 | O27: 7
K28: Jul | L28: 6 | M28: 16 | N28: 5.61 | O28: 8
K29: Aug | L29: 6 | M29: 76 | N29: 6.64 | O29: 7
K30: Sep | L30: 5 | M30: 32 | N30: 4.96 | O30: 7
K31: Oct | L31: 5 | M31: 15 | N31: 4.94 | O31: 6
K32: Nov | L32: 4 | M32: 18 | N32: 4 | O32: 6
K33: Dec | L33: 5 | M33: 14 | N33: 4.95 | O33: 7
K34: Annual | L34: =AVERAGE(L22:L33) -> 5.25 | M34: =MAX(M22:M33) -> 76 | N34: =AVERAGE(N22:N33) -> 5.215833333 | O34: =MAX(O22:O33) -> 8
J36: =+A6 -> 2023 | K36: mg/Nm3 | L36: Monthly 1/2 hourly mean | M36: Monthly 1/2 hourly maximum | N36: Monthly daily mean | O36: Monthly daily maximum
J37: A3 | K37: Jan
K38: Feb
K39: Mar
K40: Apr
K41: May
K42: Jun
K43: Jul
K44: Aug
K45: Sep
K46: Oct
K47: Nov
A48: Comments : | K48: Dec
K49: Annual | L49: =AVERAGE(L37:L48) ->  | M49: =MAX(M37:M48) -> 0 | N49: =AVERAGE(N37:N48) ->  | O49: =MAX(O37:O48) -> 0
J51: =+A6 -> 2023 | K51: mg/Nm3 | L51: Monthly 1/2 hourly mean | M51: Monthly 1/2 hourly maximum | N51: Monthly daily mean | O51: Monthly daily maximum
J52: A4 | K52: Jan
K53: Feb
K54: Mar
K55: Apr
K56: May
K57: Jun
K58: Jul
K59: Aug
K60: Sep
K61: Oct
K62: Nov
K63: Dec
K64: Annual | L64: =AVERAGE(L52:L63) ->  | M64: =MAX(M52:M63) -> 0 | N64: =AVERAGE(N52:N63) ->  | O64: =MAX(O52:O63) -> 0
J66: =+A6 -> 2023 | K66: mg/Nm3 | L66: Monthly 1/2 hourly mean | M66: Monthly 1/2 hourly maximum | N66: Monthly daily mean | O66: Monthly daily maximum
J67: A5 | K67: Jan
K68: Feb
K69: Mar
K70: Apr
K71: May
K72: Jun
K73: Jul
K74: Aug
K75: Sep
K76: Oct
K77: Nov
K78: Dec
K79: Annual | L79: =AVERAGE(L67:L78) ->  | M79: =MAX(M67:M78) -> 0 | N79: =AVERAGE(N67:N78) ->  | O79: =MAX(O67:O78) -> 0

Sheet SO2
A1: =+'[2]Cover Page'!$B$29 -> Annual Performance Report 2023 | E1: =+'[2]Cover Page'!$B$33 -> Wolverhampton Energy from Waste Facility
A3: Monitoring of Sulphur dioxide emissions | D3: Whole Installation | G3: See Notes in Cell Q3 | J3: =+A3 -> Monitoring of Sulphur dioxide emissions | N3: Per Combustion Line | Q3: Notes:
Q4: User to add logic to complete Whole installation, Table A5:G18. From the data in Per Combustion Line, Table J6:O79, subject to No. of lines installed
A5: mg/Nm3 | B5: 1/2 Hourly Reference Periods | E5: Daily Reference Periods
A6: =+'[2]Cover Page'!C39 -> 2023 | B6: 1/2 hourly SO2 ELV | C6: Monthly 1/2 hourly mean | D6: Highest 1/2 hourly maximum | E6: Daily SO2 ELV* | F6: Monthly daily mean | G6: Highest daily maximum | J6: =+A6 -> 2023 | K6: mg/Nm3 | L6: Monthly 1/2 hourly mean | M6: Monthly 1/2 hourly maximum | N6: Monthly daily mean | O6: Monthly daily maximum
A7: Jan | B7: 200 | C7: =AVERAGE(L7,L22) -> 16.5 | D7: =MAX(M7,M22) -> 114 | E7: 50 | F7: =AVERAGE(N7,N22) -> 17.89 | G7: =MAX(O7,O22) -> 27 | J7: A1 | K7: Jan | L7: 17 | M7: 114 | N7: 16.45 | O7: 26
A8: Feb | B8: 200 | C8: 17 | D8: 87 | E8: 50 | F8: 16.59 | G8: 32 | K8: Feb | L8: 21 | M8: 84 | N8: 19.89 | O8: 32
A9: Mar | B9: 200 | C9: 15.5 | D9: 124 | E9: 50 | F9: 14.665 | G9: 28 | K9: Mar | L9: 19 | M9: 124 | N9: 18.2 | O9: 28 | Q9: Whole Installation table A5:G18:
A10: Apr | B10: 200 | C10: 19.5 | D10: 201 | E10: 50 | F10: 19.025 | G10: 33 | K10: Apr | L10: 22 | M10: 96 | N10: 22.27 | O10: 33 | Q10: Mean: for 1/2 hourly and daily periods calculate mean of values across all operational combustion lines for the month
A11: May | B11: 200 | C11: 21 | D11: 211 | E11: 50 | F11: 20.265 | G11: 31 | K11: May | L11: 19 | M11: 107 | N11: 16.78 | O11: 24
A12: Jun | B12: 200 | C12: 20 | D12: 124 | E12: 50 | F12: 19.435 | G12: 28 | K12: Jun | L12: 21 | M12: 87 | N12: 20.67 | O12: 28
A13: Jul | B13: 200 | C13: 22.5 | D13: 110 | E13: 50 | F13: 31.6 | G13: 45 | K13: Jul | L13: 19 | M13: 87 | N13: 17.73 | O13: 31 | Q13: Maximum: for 1/2 hourly and daily periods use the highest value across all operational combustion lines for the month
A14: Aug | B14: 200 | C14: 19.5 | D14: 128 | E14: 50 | F14: 18.685 | G14: 29 | K14: Aug | L14: 17 | M14: 91 | N14: 16.56 | O14: 28
A15: Sep | B15: 200 | C15: 16.5 | D15: 95 | E15: 50 | F15: 16.68 | G15: 29 | K15: Sep | L15: 13 | M15: 65 | N15: 12.76 | O15: 23
A16: Oct | B16: 200 | C16: 15 | D16: 77 | E16: 50 | F16: 14.705 | G16: 28 | K16: Oct | L16: 13 | M16: 77 | N16: 11.8 | O16: 21
A17: Nov | B17: 200 | C17: 19.5 | D17: 113 | E17: 50 | F17: 18.505 | G17: 31 | K17: Nov | L17: 16 | M17: 113 | N17: 16.2 | O17: 20
A18: Dec | B18: 200 | C18: 14 | D18: 72 | E18: 50 | F18: 14.63 | G18: 27 | K18: Dec | L18: 13 | M18: 65 | N18: 13 | O18: 22
E19: * ELV reduced to 40 mg/Nm3 on 3 December 2023 | K19: Annual | L19: =AVERAGE(L7:L18) -> 17.5 | M19: =MAX(M7:M18) -> 124 | N19: =AVERAGE(N7:N18) -> 16.85916667 | O19: =MAX(O7:O18) -> 33
J21: =+A6 -> 2023 | K21: mg/Nm3 | L21: Monthly 1/2 hourly mean | M21: Monthly 1/2 hourly maximum | N21: Monthly daily mean | O21: Monthly daily maximum
J22: A2 | K22: Jan | L22: 16 | M22: 114 | N22: 19.33 | O22: 27
K23: Feb | L23: 13 | M23: 87 | N23: 13.29 | O23: 27
K24: Mar | L24: 12 | M24: 103 | N24: 11.13 | O24: 23
K25: Apr | L25: 17 | M25: 201 | N25: 15.78 | O25: 29
K26: May | L26: 23 | M26: 211 | N26: 23.75 | O26: 31
K27: Jun | L27: 19 | M27: 124 | N27: 18.2 | O27: 28
K28: Jul | L28: 26 | M28: 110 | N28: 45.47 | O28: 45
K29: Aug | L29: 22 | M29: 128 | N29: 20.81 | O29: 29
K30: Sep | L30: 20 | M30: 95 | N30: 20.6 | O30: 29
K31: Oct | L31: 17 | M31: 70 | N31: 17.61 | O31: 28
K32: Nov | L32: 23 | M32: 88 | N32: 20.81 | O32: 31
K33: Dec | L33: 15 | M33: 72 | N33: 16.26 | O33: 27
K34: Annual | L34: =AVERAGE(L22:L33) -> 18.58333333 | M34: =MAX(M22:M33) -> 211 | N34: =AVERAGE(N22:N33) -> 20.25333333 | O34: =MAX(O22:O33) -> 45
J36: =+A6 -> 2023 | K36: mg/Nm3 | L36: Monthly 1/2 hourly mean | M36: Monthly 1/2 hourly maximum | N36: Monthly daily mean | O36: Monthly daily maximum
J37: A3 | K37: Jan
K38: Feb
K39: Mar
K40: Apr
K41: May
K42: Jun
K43: Jul
K44: Aug
K45: Sep
K46: Oct
K47: Nov
A48: Comments : | K48: Dec
K49: Annual | L49: =AVERAGE(L37:L48) ->  | M49: =MAX(M37:M48) -> 0 | N49: =AVERAGE(N37:N48) ->  | O49: =MAX(O37:O48) -> 0
J51: =+A6 -> 2023 | K51: mg/Nm3 | L51: Monthly 1/2 hourly mean | M51: Monthly 1/2 hourly maximum | N51: Monthly daily mean | O51: Monthly daily maximum
J52: A4 | K52: Jan
K53: Feb
K54: Mar
K55: Apr
K56: May
K57: Jun
K58: Jul
K59: Aug
K60: Sep
K61: Oct
K62: Nov
K63: Dec
K64: Annual | L64: =AVERAGE(L52:L63) ->  | M64: =MAX(M52:M63) -> 0 | N64: =AVERAGE(N52:N63) ->  | O64: =MAX(O52:O63) -> 0
J66: =+A6 -> 2023 | K66: mg/Nm3 | L66: Monthly 1/2 hourly mean | M66: Monthly 1/2 hourly maximum | N66: Monthly daily mean | O66: Monthly daily maximum
J67: A5 | K67: Jan
K68: Feb
K69: Mar
K70: Apr
K71: May
K72: Jun
K73: Jul
K74: Aug
K75: Sep
K76: Oct
K77: Nov
K78: Dec
K79: Annual | L79: =AVERAGE(L67:L78) ->  | M79: =MAX(M67:M78) -> 0 | N79: =AVERAGE(N67:N78) ->  | O79: =MAX(O67:O78) -> 0

Sheet NOx
A1: =+'[2]Cover Page'!$B$29 -> Annual Performance Report 2023 | E1: =+'[2]Cover Page'!$B$33 -> Wolverhampton Energy from Waste Facility
A3: Monitoring of Oxides of Nitrogen emissions | D3: Whole Installation | G3: See Notes in Cell Q3 | J3: =+A3 -> Monitoring of Oxides of Nitrogen emissions | N3: Per Combustion Line | Q3: Notes:
Q4: User to add logic to complete Whole installation, Table A5:G18. From the data in Per Combustion Line, Table J6:O79, subject to No. of lines installed
A5: mg/Nm3 | B5: 1/2 Hourly Reference Periods | E5: Daily Reference Periods
A6: =+'[2]Cover Page'!C39 -> 2023 | B6: 1/2 hourly NOx ELV | C6: Monthly 1/2 hourly mean | D6: Highest 1/2 hourly maximum | E6: Daily NOx ELV* | F6: Monthly daily mean | G6: Highest daily maximum | J6: =+A6 -> 2023 | K6: mg/Nm3 | L6: Monthly 1/2 hourly mean | M6: Monthly 1/2 hourly maximum | N6: Monthly daily mean | O6: Monthly daily maximum
A7: Jan | B7: 400 | C7: =AVERAGE(L7,L22) -> 179 | D7: =MAX(M7,M22) -> 311 | E7: 200 | F7: =AVERAGE(N7,N22) -> 178.05 | G7: =MAX(O7,O22) -> 189 | J7: A1 | K7: Jan | L7: 186 | M7: 246 | N7: 185.4 | O7: 187
A8: Feb | B8: 400 | C8: 172 | D8: 315 | E8: 200 | F8: 170.93 | G8: 189 | K8: Feb | L8: 185 | M8: 315 | N8: 184.44 | O8: 189
A9: Mar | B9: 400 | C9: 167.5 | D9: 399 | E9: 200 | F9: 166.665 | G9: 187 | K9: Mar | L9: 167 | M9: 399 | N9: 165.33 | O9: 187 | Q9: Whole Installation table A5:G18:
A10: Apr | B10: 400 | C10: 172 | D10: 340 | E10: 200 | F10: 166.17 | G10: 184 | K10: Apr | L10: 172 | M10: 338 | N10: 160.67 | O10: 182 | Q10: Mean: for 1/2 hourly and daily periods calculate mean of values across all operational combustion lines for the month
A11: May | B11: 400 | C11: 170.5 | D11: 449 | E11: 200 | F11: 170.68 | G11: 177 | K11: May | L11: 171 | M11: 321 | N11: 171.11 | O11: 177
A12: Jun | B12: 400 | C12: 171 | D12: 360 | E12: 200 | F12: 170.75 | G12: 174 | K12: Jun | L12: 172 | M12: 284 | N12: 171 | O12: 173
A13: Jul | B13: 400 | C13: 170.5 | D13: 448 | E13: 200 | F13: 171.015 | G13: 179 | K13: Jul | L13: 171 | M13: 298 | N13: 170.65 | O13: 175 | Q13: Maximum: for 1/2 hourly and daily periods use the highest value across all operational combustion lines for the month
A14: Aug | B14: 400 | C14: 171 | D14: 278 | E14: 200 | F14: 170.735 | G14: 174 | K14: Aug | L14: 171 | M14: 278 | N14: 170.66 | O14: 174
A15: Sep | B15: 400 | C15: 171 | D15: 286 | E15: 200 | F15: 170.86 | G15: 177 | K15: Sep | L15: 171 | M15: 276 | N15: 170.8 | O15: 177
A16: Oct | B16: 400 | C16: 171 | D16: 338 | E16: 200 | F16: 170.37 | G16: 174 | K16: Oct | L16: 171 | M16: 338 | N16: 170.34 | O16: 174
A17: Nov | B17: 400 | C17: 164.5 | D17: 296 | E17: 200 | F17: 171.115 | G17: 176 | K17: Nov | L17: 160 | M17: 296 | N17: 171.4 | O17: 176
A18: Dec | B18: 400 | C18: 169 | D18: 323 | E18: 200 | F18: 168.95 | G18: 178 | K18: Dec | L18: 168 | M18: 323 | N18: 167.64 | O18: 172
E19: * ELV reduced to 180 mg/Nm3 on 3 December 2023 | K19: Annual | L19: =AVERAGE(L7:L18) -> 172.0833333 | M19: =MAX(M7:M18) -> 399 | N19: =AVERAGE(N7:N18) -> 171.62 | O19: =MAX(O7:O18) -> 189
J21: =+A6 -> 2023 | K21: mg/Nm3 | L21: Monthly 1/2 hourly mean | M21: Monthly 1/2 hourly maximum | N21: Monthly daily mean | O21: Monthly daily maximum
J22: A2 | K22: Jan | L22: 172 | M22: 311 | N22: 170.7 | O22: 189
K23: Feb | L23: 159 | M23: 272 | N23: 157.42 | O23: 186
K24: Mar | L24: 168 | M24: 330 | N24: 168 | O24: 185
K25: Apr | L25: 172 | M25: 340 | N25: 171.67 | O25: 184
K26: May | L26: 170 | M26: 449 | N26: 170.25 | O26: 176
K27: Jun | L27: 170 | M27: 360 | N27: 170.5 | O27: 174
K28: Jul | L28: 170 | M28: 448 | N28: 171.38 | O28: 179
K29: Aug | L29: 171 | M29: 223 | N29: 170.81 | O29: 172
K30: Sep | L30: 171 | M30: 286 | N30: 170.92 | O30: 174
K31: Oct | L31: 171 | M31: 309 | N31: 170.4 | O31: 174
K32: Nov | L32: 169 | M32: 175 | N32: 170.83 | O32: 175
K33: Dec | L33: 170 | M33: 320 | N33: 170.26 | O33: 178
K34: Annual | L34: =AVERAGE(L22:L33) -> 169.4166667 | M34: =MAX(M22:M33) -> 449 | N34: =AVERAGE(N22:N33) -> 169.4283333 | O34: =MAX(O22:O33) -> 189
J36: =+A6 -> 2023 | K36: mg/Nm3 | L36: Monthly 1/2 hourly mean | M36: Monthly 1/2 hourly maximum | N36: Monthly daily mean | O36: Monthly daily maximum
J37: A3 | K37: Jan
K38: Feb
K39: Mar
K40: Apr
K41: May
K42: Jun
K43: Jul
K44: Aug
K45: Sep
K46: Oct
K47: Nov
A48: Comments : | K48: Dec
K49: Annual | L49: =AVERAGE(L37:L48) ->  | M49: =MAX(M37:M48) -> 0 | N49: =AVERAGE(N37:N48) ->  | O49: =MAX(O37:O48) -> 0
J51: =+A6 -> 2023 | K51: mg/Nm3 | L51: Monthly 1/2 hourly mean | M51: Monthly 1/2 hourly maximum | N51: Monthly daily mean | O51: Monthly daily maximum
J52: A4 | K52: Jan
K53: Feb
K54: Mar
K55: Apr
K56: May
K57: Jun
K58: Jul
K59: Aug
K60: Sep
K61: Oct
K62: Nov
K63: Dec
K64: Annual | L64: =AVERAGE(L52:L63) ->  | M64: =MAX(M52:M63) -> 0 | N64: =AVERAGE(N52:N63) ->  | O64: =MAX(O52:O63) -> 0
J66: =+A6 -> 2023 | K66: mg/Nm3 | L66: Monthly 1/2 hourly mean | M66: Monthly 1/2 hourly maximum | N66: Monthly daily mean | O66: Monthly daily maximum
J67: A5 | K67: Jan
K68: Feb
K69: Mar
K70: Apr
K71: May
K72: Jun
K73: Jul
K74: Aug
K75: Sep
K76: Oct
K77: Nov
K78: Dec
K79: Annual | L79: =AVERAGE(L67:L78) ->  | M79: =MAX(M67:M78) -> 0 | N79: =AVERAGE(N67:N78) ->  | O79: =MAX(O67:O78) -> 0

Sheet TOC
A1: =+'[2]Cover Page'!$B$29 -> Annual Performance Report 2023 | E1: =+'[2]Cover Page'!$B$33 -> Wolverhampton Energy from Waste Facility
A3: Monitoring of Total organic carbon emissions | D3: Whole Installation | G3: See Notes in Cell Q3 | J3: =+A3 -> Monitoring of Total organic carbon emissions | N3: Per Combustion Line | Q3: Notes:
Q4: User to add logic to complete Whole installation, Table A5:G18. From the data in Per Combustion Line, Table J6:O79, subject to No. of lines installed
A5: mg/Nm3 | B5: 1/2 Hourly Reference Periods | E5: Daily Reference Periods
A6: =+'[2]Cover Page'!C39 -> 2023 | B6: 1/2 hourly TOC ELV | C6: Monthly 1/2 hourly mean | D6: Highest 1/2 hourly maximum | E6: Daily TOC ELV | F6: Monthly daily mean | G6: Highest daily maximum | J6: =+A6 -> 2023 | K6: mg/Nm3 | L6: Monthly 1/2 hourly mean | M6: Monthly 1/2 hourly maximum | N6: Monthly daily mean | O6: Monthly daily maximum
A7: Jan | B7: 20 | C7: =AVERAGE(L7,L22) -> 0.48 | D7: =MAX(M7,M22) -> 36 | E7: 10 | F7: =AVERAGE(N7,N22) -> 0.51 | G7: =MAX(O7,O22) -> 3 | J7: A1 | K7: Jan | L7: 0.32 | M7: 36 | N7: 0.37 | O7: 3
A8: Feb | B8: 20 | C8: 0 | D8: 5 | E8: 10 | F8: 0.125 | G8: 1 | K8: Feb | L8: 0 | M8: 4 | N8: 0 | O8: 0
A9: Mar | B9: 20 | C9: 0.295 | D9: 190 | E9: 10 | F9: 0.39 | G9: 4 | K9: Mar | L9: 0.36 | M9: 190 | N9: 0.34 | O9: 4 | Q9: Whole Installation table A5:G18:
A10: Apr | B10: 20 | C10: 0.685 | D10: 21 | E10: 10 | F10: 0.525 | G10: 2 | K10: Apr | L10: 0.37 | M10: 21 | N10: 0.37 | O10: 2 | Q10: Mean: for 1/2 hourly and daily periods calculate mean of values across all operational combustion lines for the month
A11: May | B11: 20 | C11: 0.22 | D11: 16 | E11: 10 | F11: 0.205 | G11: 1 | K11: May | L11: 0.33 | M11: 15 | N11: 0.33 | O11: 1
A12: Jun | B12: 20 | C12: 0.72 | D12: 18 | E12: 10 | F12: 0.33 | G12: 2 | K12: Jun | L12: 0.44 | M12: 18 | N12: 0.22 | O12: 2
A13: Jul | B13: 20 | C13: 0.61 | D13: 15 | E13: 10 | F13: 0.555 | G13: 1 | K13: Jul | L13: 0.22 | M13: 15 | N13: 0.2 | O13: 1 | Q13: Maximum: for 1/2 hourly and daily periods use the highest value across all operational combustion lines for the month
A14: Aug | B14: 20 | C14: 1 | D14: 14 | E14: 10 | F14: 1.15 | G14: 3 | K14: Aug | L14: 1 | M14: 14 | N14: 1.3 | O14: 3
A15: Sep | B15: 20 | C15: 0.615 | D15: 44 | E15: 10 | F15: 0.49 | G15: 2 | K15: Sep | L15: 1 | M15: 12 | N15: 0.75 | O15: 2
A16: Oct | B16: 20 | C16: 0 | D16: 34 | E16: 10 | F16: 0 | G16: 1 | K16: Oct | L16: 0 | M16: 0 | N16: 0 | O16: 0
A17: Nov | B17: 20 | C17: 0.5 | D17: 6 | E17: 10 | F17: 0.5 | G17: 1 | K17: Nov | L17: 1 | M17: 1 | N17: 1 | O17: 1
A18: Dec | B18: 20 | C18: 0.035 | D18: 3 | E18: 10 | F18: 0.02 | G18: 1 | K18: Dec | L18: 0.03 | M18: 1 | N18: 0.04 | O18: 1
K19: Annual | L19: =AVERAGE(L7:L18) -> 0.4225 | M19: =MAX(M7:M18) -> 190 | N19: =AVERAGE(N7:N18) -> 0.41 | O19: =MAX(O7:O18) -> 4
J21: =+A6 -> 2023 | K21: mg/Nm3 | L21: Monthly 1/2 hourly mean | M21: Monthly 1/2 hourly maximum | N21: Monthly daily mean | O21: Monthly daily maximum
J22: A2 | K22: Jan | L22: 0.64 | M22: 6 | N22: 0.65 | O22: 2
K23: Feb | L23: 0 | M23: 5 | N23: 0.25 | O23: 1
K24: Mar | L24: 0.23 | M24: 10 | N24: 0.44 | O24: 1
K25: Apr | L25: 1 | M25: 12 | N25: 0.68 | O25: 1
K26: May | L26: 0.11 | M26: 16 | N26: 0.08 | O26: 1
K27: Jun | L27: 1 | M27: 7 | N27: 0.44 | O27: 1
K28: Jul | L28: 1 | M28: 3 | N28: 0.91 | O28: 1
K29: Aug | L29: 1 | M29: 7 | N29: 1 | O29: 2
K30: Sep | L30: 0.23 | M30: 44 | N30: 0.23 | O30: 1
K31: Oct | L31: 0 | M31: 34 | N31: 0 | O31: 1
K32: Nov | L32: 0 | M32: 6 | N32: 0 | O32: 0
K33: Dec | L33: 0.04 | M33: 3 | N33: 0 | O33: 0
K34: Annual | L34: =AVERAGE(L22:L33) -> 0.4375 | M34: =MAX(M22:M33) -> 44 | N34: =AVERAGE(N22:N33) -> 0.39 | O34: =MAX(O22:O33) -> 2
J36: =+A6 -> 2023 | K36: mg/Nm3 | L36: Monthly 1/2 hourly mean | M36: Monthly 1/2 hourly maximum | N36: Monthly daily mean | O36: Monthly daily maximum
J37: A3 | K37: Jan
K38: Feb
K39: Mar
K40: Apr
K41: May
K42: Jun
K43: Jul
K44: Aug
K45: Sep
K46: Oct
K47: Nov
A48: Comments : | K48: Dec
K49: Annual | L49: =AVERAGE(L37:L48) ->  | M49: =MAX(M37:M48) -> 0 | N49: =AVERAGE(N37:N48) ->  | O49: =MAX(O37:O48) -> 0
J51: =+A6 -> 2023 | K51: mg/Nm3 | L51: Monthly 1/2 hourly mean | M51: Monthly 1/2 hourly maximum | N51: Monthly daily mean | O51: Monthly daily maximum
J52: A4 | K52: Jan
K53: Feb
K54: Mar
K55: Apr
K56: May
K57: Jun
K58: Jul
K59: Aug
K60: Sep
K61: Oct
K62: Nov
K63: Dec
K64: Annual | L64: =AVERAGE(L52:L63) ->  | M64: =MAX(M52:M63) -> 0 | N64: =AVERAGE(N52:N63) ->  | O64: =MAX(O52:O63) -> 0
J66: =+A6 -> 2023 | K66: mg/Nm3 | L66: Monthly 1/2 hourly mean | M66: Monthly 1/2 hourly maximum | N66: Monthly daily mean | O66: Monthly daily maximum
J67: A5 | K67: Jan
K68: Feb
K69: Mar
K70: Apr
K71: May
K72: Jun
K73: Jul
K74: Aug
K75: Sep
K76: Oct
K77: Nov
K78: Dec
K79: Annual | L79: =AVERAGE(L67:L78) ->  | M79: =MAX(M67:M78) -> 0 | N79: =AVERAGE(N67:N78) ->  | O79: =MAX(O67:O78) -> 0

Sheet Particulates
A1: =+'[2]Cover Page'!$B$29 -> Annual Performance Report 2023 | E1: =+'[2]Cover Page'!$B$33 -> Wolverhampton Energy from Waste Facility
A3: Monitoring of Particulate matter emissions | D3: Whole Installation | G3: See Notes in Cell Q3 | J3: =+A3 -> Monitoring of Particulate matter emissions | N3: Per Combustion Line | Q3: Notes:
Q4: User to add logic to complete Whole installation, Table A5:G18. From the data in Per Combustion Line, Table J6:O79, subject to No. of lines installed
A5: mg/Nm3 | B5: 1/2 Hourly Reference Periods | E5: Daily Reference Periods
A6: =+'[2]Cover Page'!C39 -> 2023 | B6: 1/2 hourly PM ELV | C6: Monthly 1/2 hourly mean | D6: Highest 1/2 hourly maximum | E6: Daily PM ELV* | F6: Monthly daily mean | G6: Highest daily maximum | J6: =+A6 -> 2023 | K6: mg/Nm3 | L6: Monthly 1/2 hourly mean | M6: Monthly 1/2 hourly maximum | N6: Monthly daily mean | O6: Monthly daily maximum
A7: Jan | B7: 30 | C7: =AVERAGE(L7,L22) -> 0.095 | D7: =MAX(M7,M22) -> 2 | E7: 10 | F7: =AVERAGE(N7,N22) -> 0 | G7: =MAX(O7,O22) -> 0 | J7: A1 | K7: Jan | L7: 0.19 | M7: 2 | N7: 0 | O7: 0
A8: Feb | B8: 30 | C8: 0 | D8: 22 | E8: 10 | F8: 0.055 | G8: 4 | K8: Feb | L8: 0 | M8: 22 | N8: 0.11 | O8: 4
A9: Mar | B9: 30 | C9: 0.015 | D9: 30 | E9: 10 | F9: 0.015 | G9: 1 | K9: Mar | L9: 0.03 | M9: 30 | N9: 0.03 | O9: 1 | Q9: Whole Installation table A5:G18:
A10: Apr | B10: 30 | C10: 0.055 | D10: 4 | E10: 10 | F10: 0.04 | G10: 1 | K10: Apr | L10: 0 | M10: 4 | N10: 0 | O10: 0 | Q10: Mean: for 1/2 hourly and daily periods calculate mean of values across all operational combustion lines for the month
A11: May | B11: 30 | C11: 0 | D11: 1 | E11: 10 | F11: 0.04 | G11: 1 | K11: May | L11: 0 | M11: 1 | N11: 0 | O11: 0
A12: Jun | B12: 30 | C12: 0.015 | D12: 1 | E12: 10 | F12: 0.015 | G12: 1 | K12: Jun | L12: 0 | M12: 1 | N12: 0 | O12: 0
A13: Jul | B13: 30 | C13: 0.5 | D13: 2 | E13: 10 | F13: 0.19 | G13: 1 | K13: Jul | L13: 0 | M13: 1 | N13: 0 | O13: 0 | Q13: Maximum: for 1/2 hourly and daily periods use the highest value across all operational combustion lines for the month
A14: Aug | B14: 30 | C14: 0.42 | D14: 88 | E14: 10 | F14: 0.43 | G14: 5 | K14: Aug | L14: 0.61 | M14: 88 | N14: 0.63 | O14: 5
A15: Sep | B15: 30 | C15: 0.325 | D15: 1 | E15: 10 | F15: 0.12 | G15: 1 | K15: Sep | L15: 0 | M15: 1 | N15: 0 | O15: 0
A16: Oct | B16: 30 | C16: 0.115 | D16: 1 | E16: 10 | F16: 0.17 | G16: 1 | K16: Oct | L16: 0.18 | M16: 1 | N16: 0.34 | O16: 1
A17: Nov | B17: 30 | C17: 1.105 | D17: 21 | E17: 10 | F17: 0.555 | G17: 1 | K17: Nov | L17: 1 | M17: 8 | N17: 0.2 | O17: 1
A18: Dec | B18: 30 | C18: 0.575 | D18: 4 | E18: 10 | F18: 0.565 | G18: 2 | K18: Dec | L18: 0.11 | M18: 4 | N18: 0.08 | O18: 2
E19: * ELV reduced to 5 mg/Nm3 on 3 December 2023 | K19: Annual | L19: =AVERAGE(L7:L18) -> 0.1766666667 | M19: =MAX(M7:M18) -> 88 | N19: =AVERAGE(N7:N18) -> 0.1158333333 | O19: =MAX(O7:O18) -> 5
J21: =+A6 -> 2023 | K21: mg/Nm3 | L21: Monthly 1/2 hourly mean | M21: Monthly 1/2 hourly maximum | N21: Monthly daily mean | O21: Monthly daily maximum
J22: A2 | K22: Jan | L22: 0 | M22: 0 | N22: 0 | O22: 0
K23: Feb | L23: 0 | M23: 2 | N23: 0 | O23: 0
K24: Mar | L24: 0 | M24: 0 | N24: 0 | O24: 0
K25: Apr | L25: 0.11 | M25: 1 | N25: 0.08 | O25: 1
K26: May | L26: 0 | M26: 1 | N26: 0.08 | O26: 1
K27: Jun | L27: 0.03 | M27: 1 | N27: 0.03 | O27: 1
K28: Jul | L28: 1 | M28: 2 | N28: 0.38 | O28: 1
K29: Aug | L29: 0.23 | M29: 1 | N29: 0.23 | O29: 1
K30: Sep | L30: 0.65 | M30: 1 | N30: 0.24 | O30: 1
K31: Oct | L31: 0.05 | M31: 1 | N31: 0 | O31: 0
K32: Nov | L32: 1.21 | M32: 21 | N32: 0.91 | O32: 1
K33: Dec | L33: 1.04 | M33: 4 | N33: 1.05 | O33: 2
K34: Annual | L34: =AVERAGE(L22:L33) -> 0.36 | M34: =MAX(M22:M33) -> 21 | N34: =AVERAGE(N22:N33) -> 0.25 | O34: =MAX(O22:O33) -> 2
J36: =+A6 -> 2023 | K36: mg/Nm3 | L36: Monthly 1/2 hourly mean | M36: Monthly 1/2 hourly maximum | N36: Monthly daily mean | O36: Monthly daily maximum
J37: A3 | K37: Jan
K38: Feb
K39: Mar
K40: Apr
K41: May
K42: Jun
K43: Jul
K44: Aug
K45: Sep
K46: Oct
K47: Nov
A48: Comments : | K48: Dec
K49: Annual | L49: =AVERAGE(L37:L48) ->  | M49: =MAX(M37:M48) -> 0 | N49: =AVERAGE(N37:N48) ->  | O49: =MAX(O37:O48) -> 0
J51: =+A6 -> 2023 | K51: mg/Nm3 | L51: Monthly 1/2 hourly mean | M51: Monthly 1/2 hourly maximum | N51: Monthly daily mean | O51: Monthly daily maximum
J52: A4 | K52: Jan
K53: Feb
K54: Mar
K55: Apr
K56: May
K57: Jun
K58: Jul
K59: Aug
K60: Sep
K61: Oct
K62: Nov
K63: Dec
K64: Annual | L64: =AVERAGE(L52:L63) ->  | M64: =MAX(M52:M63) -> 0 | N64: =AVERAGE(N52:N63) ->  | O64: =MAX(O52:O63) -> 0
J66: =+A6 -> 2023 | K66: mg/Nm3 | L66: Monthly 1/2 hourly mean | M66: Monthly 1/2 hourly maximum | N66: Monthly daily mean | O66: Monthly daily maximum
J67: A5 | K67: Jan
K68: Feb
K69: Mar
K70: Apr
K71: May
K72: Jun
K73: Jul
K74: Aug
K75: Sep
K76: Oct
K77: Nov
K78: Dec
K79: Annual | L79: =AVERAGE(L67:L78) ->  | M79: =MAX(M67:M78) -> 0 | N79: =AVERAGE(N67:N78) ->  | O79: =MAX(O67:O78) -> 0

Sheet CO 0.5 hourly
A1: =+'Cover Page'!$B$29 -> Annual Performance Report 2023 | E1: =+'Cover Page'!$B$33 -> Wolverhampton Energy from Waste Facility
A3: Monitoring of Carbon Monoxide (half hourly) | D3: Whole Installation | G3: See Notes in Cell Q3 | J3: =+A3 -> Monitoring of Carbon Monoxide (half hourly) | N3: Per Combustion Line | Q3: Notes:
A5: Please complete this tab for your plant if you have 1/2 hourly CO ELVs; otherwise, leave it blank and complete the CO 95% 10 min tab
Q7: User to add logic to complete Whole installation, Table A5:G18. From the data in Per Combustion Line, Table J6:O79, subject to No. of lines installed
A8: mg/Nm3 | B8: 1/2 Hourly Reference Periods | E8: Daily Reference Periods
A9: =+'Cover Page'!C39 -> 2023 | B9: 1/2 hourly CO ELV | C9: Monthly 1/2 hourly mean | D9: Highest 1/2 hourly maximum | E9: Daily CO ELV | F9: Monthly daily mean | G9: Highest daily maximum | J9: =+A9 -> 2023 | K9: mg/Nm3 | L9: Monthly 1/2 hourly mean | M9: Monthly 1/2 hourly maximum | N9: Monthly daily mean | O9: Monthly daily maximum
A10: Jan | B10: 100 | E10: 50 | J10: A1 | K10: Jan
A11: Feb | B11: =+B10 -> 100 | E11: =+E10 -> 50 | K11: Feb
A12: Mar | B12: =+B11 -> 100 | E12: =+E11 -> 50 | K12: Mar | Q12: Whole Installation table A5:G18:
A13: Apr | B13: 100 | E13: 50 | K13: Apr | Q13: Mean: for 1/2 hourly and daily periods calculate mean of values across all operational combustion lines for the month
A14: May | B14: 100 | E14: 50 | K14: May
A15: Jun | B15: 100 | E15: 50 | K15: Jun
A16: Jul | B16: 100 | E16: 50 | K16: Jul | Q16: Maximum: for 1/2 hourly and daily periods use the highest value across all operational combustion lines for the month
A17: Aug | B17: 100 | E17: 50 | K17: Aug
A18: Sep | B18: 100 | E18: 50 | K18: Sep
A19: Oct | B19: 100 | E19: 50 | K19: Oct
A20: Nov | B20: 100 | E20: 50 | K20: Nov
A21: Dec | B21: 100 | E21: 50 | K21: Dec
K22: Annual | L22: =AVERAGE(L10:L21) ->  | M22: =MAX(M10:M21) -> 0 | N22: =AVERAGE(N10:N21) ->  | O22: =MAX(O10:O21) -> 0
J24: =+A9 -> 2023 | K24: mg/Nm3 | L24: Monthly 1/2 hourly mean | M24: Monthly 1/2 hourly maximum | N24: Monthly daily mean | O24: Monthly daily maximum
J25: A2 | K25: Jan
K26: Feb
K27: Mar
K28: Apr
K29: May
K30: Jun
K31: Jul
K32: Aug
K33: Sep
K34: Oct
K35: Nov
K36: Dec
K37: Annual | L37: =AVERAGE(L25:L36) ->  | M37: =MAX(M25:M36) -> 0 | N37: =AVERAGE(N25:N36) ->  | O37: =MAX(O25:O36) -> 0
J39: =+A9 -> 2023 | K39: mg/Nm3 | L39: Monthly 1/2 hourly mean | M39: Monthly 1/2 hourly maximum | N39: Monthly daily mean | O39: Monthly daily maximum
J40: A3 | K40: Jan
K41: Feb
K42: Mar
K43: Apr
K44: May
K45: Jun
K46: Jul
K47: Aug
K48: Sep
K49: Oct
K50: Nov
A51: Comments : | K51: Dec
K52: Annual | L52: =AVERAGE(L40:L51) ->  | M52: =MAX(M40:M51) -> 0 | N52: =AVERAGE(N40:N51) ->  | O52: =MAX(O40:O51) -> 0
J54: =+A9 -> 2023 | K54: mg/Nm3 | L54: Monthly 1/2 hourly mean | M54: Monthly 1/2 hourly maximum | N54: Monthly daily mean | O54: Monthly daily maximum
J55: A4 | K55: Jan
K56: Feb
K57: Mar
K58: Apr
K59: May
K60: Jun
K61: Jul
K62: Aug
K63: Sep
K64: Oct
K65: Nov
K66: Dec
K67: Annual | L67: =AVERAGE(L55:L66) ->  | M67: =MAX(M55:M66) -> 0 | N67: =AVERAGE(N55:N66) ->  | O67: =MAX(O55:O66) -> 0
J69: =+A9 -> 2023 | K69: mg/Nm3 | L69: Monthly 1/2 hourly mean | M69: Monthly 1/2 hourly maximum | N69: Monthly daily mean | O69: Monthly daily maximum
J70: A5 | K70: Jan
K71: Feb
K72: Mar
K73: Apr
K74: May
K75: Jun
K76: Jul
K77: Aug
K78: Sep
K79: Oct
K80: Nov
K81: Dec
K82: Annual | L82: =AVERAGE(L70:L81) ->  | M82: =MAX(M70:M81) -> 0 | N82: =AVERAGE(N70:N81) ->  | O82: =MAX(O70:O81) -> 0

Sheet CO 95% 10 min
A1: =+'[2]Cover Page'!$B$29 -> Annual Performance Report 2023 | E1: =+'[2]Cover Page'!$B$33 -> Wolverhampton Energy from Waste Facility
A3: Monitoring of Carbon Monoxide (10-minute avg) | E3: Whole Installation | H3: See Notes in Cell S3 | J3: =+A3 -> Monitoring of Carbon Monoxide (10-minute avg) | O3: Per Combustion Line | Q3: Notes: | S3: Notes:
A5: Please complete this tab for your plant if you have 10-minute average CO ELVs; otherwise, leave it blank and complete the CO 0.5 hourly tab
S7: User to add logic to complete Whole installation, Table A5:H18. From the data in Per Combustion Line, Table K6:Q79, subject to No. of lines installed
A8: mg/Nm3 | B8: 10-minute Reference Periods | F8: Daily Reference Periods
A9: =+'[2]Cover Page'!C39 -> 2023 | B9: 95%ile 10-min avg CO ELV | C9: 95%ile 10-min avg maximum | D9: Monthly CO 10-min avg mean | E9: 10-min avg maximum | F9: Daily CO ELV | G9: Monthly daily mean | H9: Highest daily maximum | K9: =+A9 -> 2023 | L9: mg/Nm3 | M9: 95%ile 10-min avg maximum | N9: Monthly CO 10-min avg mean | O9: 10-min avg maximum | P9: Monthly daily mean | Q9: Monthly daily maximum
A10: Jan | B10: 150 | C10: =MAX(M10,M25) -> 69 | D10: =AVERAGE(N10,N25) -> 10 | E10: =MAX(O10,O25) -> 42 | F10: 50 | G10: =AVERAGE(P10,P25) -> 10 | H10: =MAX(Q10,Q25) -> 28 | K10: A1 | L10: Jan | M10: 69 | N10: 13 | O10: 42 | P10: 12.96 | Q10: 28
A11: Feb | B11: =+B10 -> 150 | C11: =MAX(M11,M26) -> 55 | D11: =AVERAGE(N11,N26) -> 6 | E11: =MAX(O11,O26) -> 15 | F11: =+F10 -> 50 | G11: =AVERAGE(P11,P26) -> 6.15 | H11: =MAX(Q11,Q26) -> 15 | L11: Feb | M11: 31 | N11: 6 | O11: 13 | P11: 6.3 | Q11: 13
A12: Mar | B12: 150 | C12: 71 | D12: 11.5 | E12: 106 | F12: 50 | G12: 10.825 | H12: 106 | L12: Mar | M12: 71 | N12: 13 | O12: 106 | P12: 12.88 | Q12: 106 | S12: Whole Installation table A5:H18:
A13: Apr | B13: 150 | C13: 64 | D13: 8.5 | E13: 21 | F13: 50 | G13: 7.69 | H13: 16 | L13: Apr | M13: 64 | N13: 9 | O13: 16 | P13: 8.2 | Q13: 16 | S13: Mean: for 10-min and daily periods use average of all operational combustion lines.
A14: May | B14: 150 | C14: 63 | D14: 6.5 | E14: 15 | F14: 50 | G14: 6.845 | H14: 15 | L14: May | M14: 63 | N14: 5 | O14: 14 | P14: 5.09 | Q14: 14
A15: Jun | B15: 150 | C15: 1590 | D15: 9.5 | E15: 126 | F15: 50 | G15: 7.17 | H15: 15 | L15: Jun | M15: 1590 | N15: 11 | O15: 126 | P15: 6.3 | Q15: 14
A16: Jul | B16: 150 | C16: 78 | D16: 5.5 | E16: 22 | F16: 50 | G16: 4.98 | H16: 22 | L16: Jul | M16: 27 | N16: 4 | O16: 12 | P16: 4.38 | Q16: 12 | S16: Maximum: for 10-min and daily periods use the highest of all operational combustion lines in any month.
A17: Aug | B17: 150 | C17: 35 | D17: 4 | E17: 12 | F17: 50 | G17: 4.265 | H17: 12 | L17: Aug | M17: 32 | N17: 4 | O17: 12 | P17: 4.33 | Q17: 12
A18: Sep | B18: 150 | C18: 50 | D18: 5 | E18: 24 | F18: 50 | G18: 5.64 | H18: 24 | L18: Sep | M18: 24 | N18: 4 | O18: 14 | P18: 4.24 | Q18: 14
A19: Oct | B19: 150 | C19: 369 | D19: 9.5 | E19: 72 | F19: 50 | G19: 8.035 | H19: 72 | L19: Oct | M19: 44 | N19: 6 | O19: 14 | P19: 6.07 | Q19: 24
A20: Nov | B20: 150 | C20: 128 | D20: 25 | E20: 219 | F20: 50 | G20: 10.925 | H20: 22 | L20: Nov | M20: 113 | N20: 41 | O20: 219 | P20: 12.75 | Q20: 20
A21: Dec | B21: 150 | C21: 54 | D21: 5.5 | E21: 21 | F21: 50 | G21: 5.565 | H21: 28 | L21: Dec | M21: 54 | N21: 8 | O21: 21 | P21: 7.96 | Q21: 28
L22: Annual | M22: =MAX(M10:M21) -> 1590 | N22: =AVERAGE(N10:N21) -> 10.33333333 | O22: =MAX(O10:O21) -> 219 | P22: =AVERAGE(P10:P21) -> 7.621666667 | Q22: =MAX(Q10:Q21) -> 106
K24: =+A9 -> 2023 | L24: mg/Nm3 | M24: 95%ile 10-min avg maximum | N24: Monthly CO 10-min avg mean | O24: 10-min avg maximum | P24: Monthly daily mean | Q24: Monthly daily maximum
K25: A2 | L25: Jan | M25: 26 | N25: 7 | O25: 26 | P25: 7.04 | Q25: 11
L26: Feb | M26: 55 | N26: 6 | O26: 15 | P26: 6 | Q26: 15
L27: Mar | M27: 54 | N27: 10 | O27: 21 | P27: 8.77 | Q27: 16
L28: Apr | M28: 47 | N28: 8 | O28: 21 | P28: 7.18 | Q28: 11
L29: May | M29: 46 | N29: 8 | O29: 15 | P29: 8.6 | Q29: 15
L30: Jun | M30: 49 | N30: 8 | O30: 16 | P30: 8.04 | Q30: 15
L31: Jul | M31: 78 | N31: 7 | O31: 22 | P31: 5.58 | Q31: 22
L32: Aug | M32: 35 | N32: 4 | O32: 12 | P32: 4.2 | Q32: 11
L33: Sep | M33: 50 | N33: 6 | O33: 24 | P33: 7.04 | Q33: 24
L34: Oct | M34: 369 | N34: 13 | O34: 72 | P34: 10 | Q34: 72
L35: Nov | M35: 128 | N35: 9 | O35: 22 | P35: 9.1 | Q35: 22
L36: Dec | M36: 25 | N36: 3 | O36: 12 | P36: 3.17 | Q36: 12
L37: Annual | M37: =AVERAGE(M25:M36) -> 80.16666667 | N37: =AVERAGE(N25:N36) -> 7.416666667 | O37: =MAX(O25:O36) -> 72 | P37: =AVERAGE(P25:P36) -> 7.06 | Q37: =MAX(Q25:Q36) -> 72
K39: =+A9 -> 2023 | L39: mg/Nm3 | M39: 95%ile 10-min avg maximum | N39: Monthly CO 10-min avg mean | O39: 10-min avg maximum | P39: Monthly daily mean | Q39: Monthly daily maximum
K40: A3 | L40: Jan
L41: Feb
L42: Mar
L43: Apr
L44: May
L45: Jun
L46: Jul
L47: Aug
L48: Sep
L49: Oct
L50: Nov
A51: Comments : | L51: Dec
A52: Environment Agency explanatory note: The 10-minute average ELV is based on the “95th percentile”. In this case this means that 95% of the 10 minute averages in the relevant 24-hour period (i.e. 137) must be below 150 mg/Nm3, and 5% (i.e. 7) are allowed to be any value above 150 mg/Nm3. Whilst we expect operators to minimise CO emissions at all times, it is perfectly acceptable for the value of the maximum 10-minute average to be above 150 mg/Nm3, provided the 95th percentile ELV has been met for that period. | L52: Annual | M52: =AVERAGE(M40:M51) ->  | O52: =MAX(O40:O51) -> 0 | P52: =AVERAGE(P40:P51) ->  | Q52: =MAX(Q40:Q51) -> 0
K54: =+A9 -> 2023 | L54: mg/Nm3 | M54: 95%ile 10-min avg maximum | N54: Monthly CO 10-min avg mean | O54: 10-min avg maximum | P54: Monthly daily mean | Q54: Monthly daily maximum
K55: A4 | L55: Jan
L56: Feb
L57: Mar
L58: Apr
L59: May
L60: Jun
L61: Jul
L62: Aug
L63: Sep
L64: Oct
L65: Nov
L66: Dec
L67: Annual | M67: =AVERAGE(M55:M66) ->  | O67: =MAX(O55:O66) -> 0 | P67: =AVERAGE(P55:P66) ->  | Q67: =MAX(Q55:Q66) -> 0
K69: =+A9 -> 2023 | L69: mg/Nm3 | M69: 95%ile 10-min avg maximum | N69: Monthly CO 10-min avg mean | O69: 10-min avg maximum | P69: Monthly daily mean | Q69: Monthly daily maximum
K70: A5 | L70: Jan
L71: Feb
L72: Mar
L73: Apr
L74: May
L75: Jun
L76: Jul
L77: Aug
L78: Sep
L79: Oct
L80: Nov
L81: Dec
L82: Annual | M82: =AVERAGE(M70:M81) ->  | O82: =MAX(O70:O81) -> 0 | P82: =AVERAGE(P70:P81) ->  | Q82: =MAX(Q70:Q81) -> 0

Sheet NH3
A1: =+'[2]Cover Page'!$B$29 -> Annual Performance Report 2023 | E1: =+'[2]Cover Page'!$B$33 -> Wolverhampton Energy from Waste Facility
A3: Monitoring of Ammnonia emissions | D3: Whole Installation | G3: See Notes in Cell Q3 | J3: =+A3 -> Monitoring of Ammnonia emissions | N3: Per Combustion Line | Q3: Notes:
Q4: User to add logic to complete Whole installation, Table A5:G18. From the data in Per Combustion Line, Table J6:O79, subject to No. of lines installed
A5: mg/Nm3 | B5: 1/2 Hourly Reference Periods | E5: Daily Reference Periods
A6: =+'[2]Cover Page'!C39 -> 2023 | B6: 1/2 hourly NH3 ELV | C6: Monthly 1/2 hourly mean | D6: Highest 1/2 hourly maximum | E6: Daily NH3 ELV* | F6: Monthly daily mean | G6: Highest daily maximum | J6: =+A6 -> 2023 | K6: mg/Nm3 | L6: Monthly 1/2 hourly mean | M6: Monthly 1/2 hourly maximum | N6: Monthly daily mean | O6: Monthly daily maximum
A7: Jan | B7: None | C7: =AVERAGE(L7,L22) -> 2.5 | D7: =MAX(M7,M22) -> 28 | E7: None | F7: =AVERAGE(N7,N22) -> 2.27 | G7: =MAX(O7,O22) -> 5 | J7: A1 | K7: Jan | L7: 4 | M7: 20 | N7: 3.8 | O7: 5
A8: Feb | B8: =+B7 -> None | C8: 1.5 | D8: 12 | E8: None | F8: 1.68 | G8: 4 | K8: Feb | L8: 3 | M8: 8 | N8: 3.03 | O8: 4
A9: Mar | B9: None | C9: 4 | D9: 224 | E9: None | F9: 3.935 | G9: 15 | K9: Mar | L9: 4 | M9: 224 | N9: 4.2 | O9: 12 | Q9: Whole Installation table A5:G18:
A10: Apr | B10: None | C10: 7.5 | D10: 116 | E10: None | F10: 19.115 | G10: 20 | K10: Apr | L10: 5 | M10: 48 | N10: 4.67 | O10: 7 | Q10: Mean: for 1/2 hourly and daily periods calculate mean of values across all operational combustion lines for the month
A11: May | B11: None | C11: 6.5 | D11: 116 | E11: None | F11: 6.395 | G11: 20 | K11: May | L11: 3 | M11: 25 | N11: 3 | O11: 6
A12: Jun | B12: None | C12: 6.5 | D12: 164 | E12: None | F12: 6.39 | G12: 22 | K12: Jun | L12: 4 | M12: 22 | N12: 3.88 | O12: 8
A13: Jul | B13: None | C13: 6.5 | D13: 137 | E13: None | F13: 5.96 | G13: 48 | K13: Jul | L13: 3 | M13: 23 | N13: 2.88 | O13: 5 | Q13: Maximum: for 1/2 hourly and daily periods use the highest value across all operational combustion lines for the month
A14: Aug | B14: None | C14: 5 | D14: 137 | E14: None | F14: 4.805 | G14: 14 | K14: Aug | L14: 6 | M14: 137 | N14: 5.8 | O14: 14
A15: Sep | B15: None | C15: 9 | D15: 230 | E15: None | F15: 8.95 | G15: 49 | K15: Sep | L15: 6 | M15: 62 | N15: 6.3 | O15: 10
A16: Oct | B16: None | C16: 8.5 | D16: 131 | E16: None | F16: 8.115 | G16: 25 | K16: Oct | L16: 5 | M16: 29 | N16: 5.07 | O16: 7
A17: Nov | B17: None | C17: 12.5 | D17: 94 | E17: None | F17: 9.525 | G17: 15 | K17: Nov | L17: 14 | M17: 94 | N17: 8.8 | O17: 11
A18: Dec | B18: None | C18: 4.5 | D18: 64 | E18: 15 | F18: 4.105 | G18: 12 | K18: Dec | L18: 5 | M18: 32 | N18: 5.16 | O18: 8
E19: * ELV came into force on 3 December 2023 | K19: Annual | L19: =AVERAGE(L7:L18) -> 5.166666667 | M19: =MAX(M7:M18) -> 224 | N19: =AVERAGE(N7:N18) -> 4.715833333 | O19: =MAX(O7:O18) -> 14
J21: =+A6 -> 2023 | K21: mg/Nm3 | L21: Monthly 1/2 hourly mean | M21: Monthly 1/2 hourly maximum | N21: Monthly daily mean | O21: Monthly daily maximum
J22: A2 | K22: Jan | L22: 1 | M22: 28 | N22: 0.74 | O22: 5
K23: Feb | L23: 0 | M23: 12 | N23: 0.33 | O23: 2
K24: Mar | L24: 4 | M24: 58 | N24: 3.67 | O24: 15
K25: Apr | L25: 10 | M25: 116 | N25: 33.56 | O25: 20
K26: May | L26: 10 | M26: 116 | N26: 9.79 | O26: 20
K27: Jun | L27: 9 | M27: 164 | N27: 8.9 | O27: 22
K28: Jul | L28: 10 | M28: 137 | N28: 9.04 | O28: 48
K29: Aug | L29: 4 | M29: 64 | N29: 3.81 | O29: 11
K30: Sep | L30: 12 | M30: 230 | N30: 11.6 | O30: 49
K31: Oct | L31: 12 | M31: 131 | N31: 11.16 | O31: 25
K32: Nov | L32: 11 | M32: 59 | N32: 10.25 | O32: 15
K33: Dec | L33: 4 | M33: 64 | N33: 3.05 | O33: 12
K34: Annual | L34: =AVERAGE(L22:L33) -> 7.25 | M34: =MAX(M22:M33) -> 230 | N34: =AVERAGE(N22:N33) -> 8.825 | O34: =MAX(O22:O33) -> 49
J36: =+A6 -> 2023 | K36: mg/Nm3 | L36: Monthly 1/2 hourly mean | M36: Monthly 1/2 hourly maximum | N36: Monthly daily mean | O36: Monthly daily maximum
J37: A3 | K37: Jan
K38: Feb
K39: Mar
K40: Apr
K41: May
K42: Jun
K43: Jul
K44: Aug
K45: Sep
K46: Oct
K47: Nov
A48: Comments : | K48: Dec
A49: An indicated ELV value of zero in the table above means that no ammonia limit is/was set in the permit. | K49: Annual | L49: =AVERAGE(L37:L48) ->  | M49: =MAX(M37:M48) -> 0 | N49: =AVERAGE(N37:N48) ->  | O49: =MAX(O37:O48) -> 0
J51: =+A6 -> 2023 | K51: mg/Nm3 | L51: Monthly 1/2 hourly mean | M51: Monthly 1/2 hourly maximum | N51: Monthly daily mean | O51: Monthly daily maximum
J52: A4 | K52: Jan
K53: Feb
K54: Mar
K55: Apr
K56: May
K57: Jun
K58: Jul
K59: Aug
K60: Sep
K61: Oct
K62: Nov
K63: Dec
K64: Annual | L64: =AVERAGE(L52:L63) ->  | M64: =MAX(M52:M63) -> 0 | N64: =AVERAGE(N52:N63) ->  | O64: =MAX(O52:O63) -> 0
J66: =+A6 -> 2023 | K66: mg/Nm3 | L66: Monthly 1/2 hourly mean | M66: Monthly 1/2 hourly maximum | N66: Monthly daily mean | O66: Monthly daily maximum
J67: A5 | K67: Jan
K68: Feb
K69: Mar
K70: Apr
K71: May
K72: Jun
K73: Jul
K74: Aug
K75: Sep
K76: Oct
K77: Nov
K78: Dec
K79: Annual | L79: =AVERAGE(L67:L78) ->  | M79: =MAX(M67:M78) -> 0 | N79: =AVERAGE(N67:N78) ->  | O79: =MAX(O67:O78) -> 0
